Workbook

Sheet Test1
A1: Sr | B1: Issuing Month | C1: Issuing Month | D1: Way | E1: Account | F1: Type | G1: Com | H1: INVO | I1: Customer Name | J1: Brand | K1: Model | L1: DOC NO | M1: AM | N1: FIRT PAY | O1: SCN PABY | P1: THR PAY | Q1: الريكوست | R1: المحصل فعليا | S1: الفرق | T1: السداد ( المتوقع) | U1: نسبة الاصدار | V1: نسبة السداد | W1: التحصيل | X1: طريقة التحصيل | Y1: صافي مستحق | Z1: سداد الشركة | AA1: نسبة العمولة | AB1: العمولة ( المتوقعة) بعد الخصم والتحصيل | AC1: العمولة ( المتوقعة) المحصلة فعليا | AD1: العمولة المستلمة | AE1: موقف العمولة | AF1: Sales Man | AG1: الشهر
B2: =">="&VLOOKUP(B3,$AK$5:$AN$20,3,FALSE) -> >=43922 | C2: ="<="&VLOOKUP(B3,$AK$5:$AN$20,4,FALSE) -> <=43951
B3: أبريل | C3: الشهر
C4: =VLOOKUP(B3,$AK$5:$AN$20,2,FALSE) -> 5 | AM4: From | AN4: To
AK5: يناير | AL5: 1 | AM5: 2020-01-01 | AN5: 2020-01-31
AK6: فبراير | AL6: 2 | AM6: 2020-02-01 | AN6: 2020-02-29
AK7: مارس | AL7: 3 | AM7: 2020-03-01 | AN7: 2020-03-31
A8: Sr | B8: Issuing Month | C8: Way | D8: Account | E8: Type | F8: Com | G8: INVO | H8: Customer Name | I8: Brand | J8: Model | K8: DOC NO | L8: AM | M8: FIRT PAY | N8: SCN PABY | O8: THR PAY | P8: الريكوست | Q8: المحصل فعليا | R8: الفرق | S8: السداد ( المتوقع) | T8: نسبة الاصدار | U8: نسبة السداد | V8: التحصيل | W8: طريقة التحصيل | X8: صافي مستحق | Y8: سداد الشركة | Z8: نسبة العمولة | AA8: العمولة ( المتوقعة) بعد الخصم والتحصيل | AB8: العمولة ( المتوقعة) المحصلة فعليا | AC8: العمولة المستلمة | AD8: موقف العمولة | AE8: Sales Man | AF8: الشهر | AK8: ربع سنوي | AL8: 4 | AM8: 2020-01-01 | AN8: 2020-03-31
A9: 1 | B9: 2020-01-01 | C9: اصدار | D9: M | E9: S | F9: - | G9: INVO 1 | H9: CUST 1 | I9: B | J9: W | K9: 100 | L9: 715400 | M9: 25237 | N9: 26828 | O9: 26828 | P9: 26827 | R9: =Q9-P9 -> -26827 | S9: 18436.6975 | T9: 0.03750069891 | U9: 0.03749930109 | V9: غير محصل | X9: 18436.6975 | Y9: مسدده | Z9: 0.35 | AA9: 8391.3025 | AB9: -18436.6975 | AC9: 4795.03 | AD9: محصله | AE9: A | AF9: 1 | AK9: أبريل | AL9: 5 | AM9: 2020-04-01 | AN9: 2020-04-30
A10: 2 | B10: 2020-01-01 | C10: اصدار | D10: M | E10: S | F10: - | G10: INVO 2 | H10: CUST 2 | I10: B | J10: W | K10: 101 | L10: 1298000 | M10: 45866 | N10: 48675 | O10: 48675 | P10: 48675 | R10: -48675 | S10: 33424.555 | T10: 0.0375 | U10: 0.0375 | V10: غير محصل | X10: 33424.555 | Y10: مسدده | Z10: 0.35 | AA10: 15250.445 | AB10: -33424.555 | AC10: 8714.54 | AD10: محصله | AE10: A | AF10: 1 | AK10: مايو | AL10: 6 | AM10: 2020-05-01 | AN10: 2020-05-31
A11: 3 | B11: 2020-01-01 | C11: اصدار | D11: M | E11: S | F11: - | G11: INVO 3 | H11: CUST 3 | I11: B | J11: W | K11: 102 | L11: 2200000 | M11: 77807 | N11: 82500 | O11: 82500 | P11: 66000 | R11: -66000 | S11: 56629.1725 | T11: 0.0375 | U11: 0.03 | V11: غير محصل | X11: 56629.1725 | Y11: مسدده | Z11: 0.35 | AA11: 25870.8275 | AB11: -56629.1725 | AC11: 14783.33 | AD11: محصله | AE11: A | AF11: 1 | AK11: ينويو | AL11: 7 | AM11: 2020-06-01 | AN11: 2020-06-30
A12: 5 | B12: 2020-01-01 | C12: اصدار | D12: M | E12: S | F12: - | G12: INVO 4 | H12: CUST 4 | I12: B | J12: W | K12: 103 | L12: 2500000 | M12: 88430 | N12: 93750 | O12: 93750 | P12: 93750 | R12: -93750 | S12: 64347.025 | T12: 0.0375 | U12: 0.0375 | V12: غير محصل | X12: 64347.025 | Y12: مسدده | Z12: 0.35 | AA12: 29402.975 | AB12: -64347.025 | AC12: 16801.7 | AD12: محصله | AE12: A | AF12: 1 | AK12: نصف سنوي | AL12: 8 | AM12: 2020-01-01 | AN12: 2020-06-30
A13: 6 | B13: 2020-01-01 | C13: اصدار | D13: M | E13: S | F13: - | G13: INVO 5 | H13: CUST 5 | I13: B | J13: W | K13: 104 | L13: 1298000 | M13: 45866 | N13: 48675 | O13: 48675 | P13: 48675 | R13: -48675 | S13: 33424.555 | T13: 0.0375 | U13: 0.0375 | V13: غير محصل | X13: 33424.555 | Y13: مسدده | Z13: 0.35 | AA13: 15250.445 | AB13: -33424.555 | AC13: 8932.4035 | AD13: محصله | AE13: A | AF13: 1 | AK13: يوليو | AL13: 9 | AM13: 2020-07-01 | AN13: 2020-07-31
A14: 7 | B14: 2020-01-01 | C14: اصدار | D14: M | E14: S | F14: - | G14: INVO 6 | H14: CUST 6 | I14: B | J14: W | K14: 105 | L14: 1850000 | M14: 65413 | N14: 69375 | O14: 69375 | P14: 55500 | R14: =Q14-P14 -> -55500 | S14: 47625.1775 | T14: 0.0375 | U14: 0.03 | V14: غير محصل | X14: 47625.1775 | Y14: مسدده | Z14: 0.35 | AA14: 21749.8225 | AB14: -47625.1775 | AC14: 12428.47 | AD14: محصله | AE14: A | AF14: 1 | AK14: اغسطس | AL14: 10 | AM14: 2020-08-01 | AN14: 2020-08-31
A15: 8 | B15: 2020-01-01 | C15: اصدار | D15: M | E15: S | F15: - | G15: INVO 7 | H15: CUST 7 | I15: B | J15: W | K15: 106 | L15: 640062 | M15: 15059 | N15: 16001 | O15: 20802.015 | P15: 19202 | Q15: 19202 | R15: 0 | S15: 9563.2775 | T15: 0.02499914071 | U15: 0.03000021873 | V15: محصل | W15: كاش | X15: 9563.2775 | Y15: مسدده | Z15: 0.45 | AA15: 6437.7225 | AB15: 9638.7225 | AC15: 0 | AD15: واجبه التحصيل | AE15: A | AF15: 1 | AK15: سبتمبر | AL15: 11 | AM15: 2020-09-01 | AN15: 2020-09-30
A16: 9 | B16: 2020-01-01 | C16: اصدار | D16: M | E16: S | F16: - | G16: INVO 8 | H16: CUST 8 | I16: B | J16: W | K16: 107 | L16: 220000 | M16: 5610 | N16: 6050 | O16: 6050 | P16: 6050 | Q16: 6050 | R16: 0 | S16: 5250.575 | T16: 0.0275 | U16: 0.0275 | V16: محصل | W16: كاش | X16: 5250.575 | Y16: مسدده | Z16: 0.15 | AA16: 799.425 | AB16: 799.425 | AC16: 880.1529 | AD16: محصله | AE16: A | AF16: 1 | AK16: 3/4 سنوي | AL16: 12 | AM16: 2020-01-01 | AN16: 2020-09-30
A17: 10 | B17: 2020-01-01 | C17: اصدار | D17: M | E17: S | F17: - | G17: INVO 9 | H17: CUST 9 | I17: B | J17: W | K17: 108 | L17: 1168200 | M17: 27530 | N17: 29207 | O17: 40887 | P17: 41387 | R17: -41387 | S17: 17437.925 | T17: 0.02500171204 | U17: 0.0354280089 | V17: غير محصل | X17: 17437.925 | Y17: مسدده | Z17: 0.45 | AA17: 11769.075 | AB17: -17437.925 | AC17: 0 | AD17: واجبه التحصيل | AE17: A | AF17: 1 | AK17: اكتوبر | AL17: 13 | AM17: 2020-10-01 | AN17: 2020-10-31
A18: 13 | B18: 2020-01-01 | C18: اصدار | D18: M | E18: S | F18: - | G18: INVO 10 | H18: CUST 10 | I18: B | J18: W | K18: 109 | L18: 740000 | M18: 17419 | N18: 18500 | O18: 26000 | P18: 26000 | R18: -26000 | S18: 11053.3775 | T18: 0.025 | U18: 0.03513513514 | V18: غير محصل | X18: 11053.3775 | Y18: مسدده | Z18: 0.45 | AA18: 7446.6225 | AB18: -11053.3775 | AC18: 0 | AD18: واجبه التحصيل | AE18: A | AF18: 1 | AK18: نوفمبر | AL18: 14 | AM18: 2020-11-01 | AN18: 2020-11-30
A19: 15 | B19: 2020-01-01 | C19: اصدار | D19: M | E19: S | F19: - | G19: INVO 11 | H19: CUST 11 | I19: B | J19: W | K19: 110 | L19: 656100 | M19: 15439 | N19: 16403 | O19: 24604 | P19: 22963.5 | R19: -22963.5 | S19: 9802.8275 | T19: 0.02500076208 | U19: 0.035 | V19: غير محصل | X19: 9802.8275 | Y19: مسدده | Z19: 0.45 | AA19: 6600.1725 | AB19: -9802.8275 | AC19: 0 | AD19: واجبه التحصيل | AE19: A | AF19: 1 | AK19: ديسمبر | AL19: 15 | AM19: 2020-12-01 | AN19: 2020-12-31
A20: 18 | B20: 2020-01-01 | C20: اصدار | D20: M | E20: S | F20: - | G20: INVO 12 | H20: CUST 12 | I20: B | J20: W | K20: 111 | L20: 450000 | M20: 10573 | N20: 11250 | O20: 15750 | P20: 15750 | R20: -15750 | S20: 6730.0425 | T20: 0.025 | U20: 0.035 | V20: غير محصل | X20: 6730.0425 | Y20: مسدده | Z20: 0.45 | AA20: 4519.9575 | AB20: -6730.0425 | AC20: 0 | AD20: واجبه التحصيل | AE20: A | AF20: 1 | AK20: سنوي | AL20: 16 | AM20: 2020-01-01 | AN20: 2020-12-31
A21: 25 | B21: 2020-01-01 | C21: اصدار | D21: M | E21: S | F21: - | G21: INVO 13 | H21: CUST 13 | I21: B | J21: W | K21: 112 | L21: 738000 | M21: 17372 | N21: 18450 | O21: 31365 | P21: 31365 | R21: -31365 | S21: 11023.47 | T21: 0.025 | U21: 0.0425 | V21: غير محصل | X21: 11023.47 | Y21: مسدده | Z21: 0.45 | AA21: 7426.53 | AB21: -11023.47 | AC21: 2888.095 | AD21: محصله | AE21: A | AF21: 1
A22: 32 | B22: 2020-01-01 | C22: اصدار | D22: M | E22: S | F22: - | G22: INVO 14 | H22: CUST 14 | I22: B | J22: W | K22: 113 | L22: 684000 | M22: 16097 | N22: 17100 | O22: 22230 | P22: 23940 | R22: -23940 | S22: 10218.5325 | T22: 0.025 | U22: 0.035 | V22: غير محصل | X22: 10218.5325 | Y22: غير مسدده | Z22: 0.45 | AA22: 6881.4675 | AB22: -10218.5325 | AD22: مؤجلة لعدم السداد | AE22: A | AF22: 1
A23: 45 | B23: 2020-01-01 | C23: اصدار | D23: M | E23: S | F23: - | G23: INVO 15 | H23: CUST 15 | I23: B | J23: W | K23: 114 | L23: 1480000 | M23: 34890 | N23: 37002 | O23: 44400 | P23: 51800 | R23: -51800 | S23: 22086.525 | T23: 0.02500135135 | U23: 0.035 | V23: غير محصل | X23: 22086.525 | Y23: مسدده | Z23: 0.45 | AA23: 14915.475 | AB23: -22086.525 | AC23: 0 | AD23: واجبه التحصيل | AE23: A | AF23: 1
A24: 46 | B24: 2020-01-01 | C24: اصدار | D24: M | E24: S | F24: - | G24: INVO 16 | H24: CUST 16 | I24: B | J24: W | K24: 115 | L24: 500000 | M24: 14113.31 | N24: 15000 | O24: 15000 | P24: 11250 | R24: -11250 | S24: 10977.70665 | T24: 0.03 | U24: 0.0225 | V24: غير محصل | X24: 10977.70665 | Y24: مسدده | Z24: 0.3 | AA24: 4022.29335 | AB24: -10977.70665 | AC24: 4022.29335 | AD24: محصله | AE24: A | AF24: 1
A25: 52 | B25: 2020-01-01 | C25: اصدار | D25: M | E25: S | F25: - | G25: INVO 17 | H25: CUST 17 | I25: B | J25: W | K25: 116 | L25: 1305000 | M25: 30757 | N25: 32625 | O25: 48938 | P25: 45675 | R25: -45675 | S25: 19476.3825 | T25: 0.025 | U25: 0.035 | V25: غير محصل | X25: 19476.3825 | Y25: مسدده | Z25: 0.45 | AA25: 13148.6175 | AB25: -19476.3825 | AC25: 0 | AD25: واجبه التحصيل | AE25: A | AF25: 1
A26: 56 | B26: 2020-01-01 | C26: اصدار | D26: M | E26: S | F26: - | G26: INVO 18 | H26: CUST 18 | I26: B | J26: W | K26: 117 | L26: -50000 | M26: -1182 | N26: -1250 | O26: -1250 | P26: -1750 | R26: 1750 | S26: -744.695 | T26: 0.025 | U26: 0.035 | V26: غير محصل | X26: -744.695 | Y26: مسدده | Z26: 0.45 | AA26: -505.305 | AB26: 744.695 | AC26: -168.435 | AD26: محصله | AE26: A | AF26: 1
A27: 61 | B27: 2020-01-01 | C27: اصدار | D27: M | E27: S | F27: - | G27: INVO 19 | H27: CUST 19 | I27: B | J27: W | K27: 118 | L27: 1305000 | M27: 52322 | N27: 55463 | O27: 55463 | P27: 45675 | R27: -45675 | S27: 33095.345 | T27: 0.04250038314 | U27: 0.035 | V27: غير محصل | X27: 33095.345 | Y27: مسدده | Z27: 0.45 | AA27: 22367.655 | AB27: -33095.345 | AC27: 22367.655 | AD27: محصله | AE27: A | AF27: 1
A28: 75 | B28: 2020-01-01 | C28: اصدار | D28: M | E28: S | F28: - | G28: INVO 20 | H28: CUST 20 | I28: B | J28: W | K28: 119 | L28: 648000 | M28: 25954.67 | N28: 27540 | O28: 27540 | P28: 24300 | R28: -24300 | S28: 16444.37858 | T28: 0.0425 | U28: 0.0375 | V28: غير محصل | X28: 16444.37858 | Y28: مسدده | Z28: 0.45 | AA28: 11095.62142 | AB28: -16444.37858 | AC28: 11095.62142 | AD28: محصله | AE28: A | AF28: 1
A29: 76 | B29: 2020-01-01 | C29: اصدار | D29: M | E29: S | F29: - | G29: INVO 21 | H29: CUST 21 | I29: B | J29: W | K29: 120 | L29: 1475000 | M29: 52180 | N29: 55312 | O29: 55312 | P29: 55312 | Q29: 55312 | R29: 0 | S29: 33005.05 | T29: 0.03749966102 | U29: 0.03749966102 | V29: محصل | W29: شيك | X29: 33005.05 | Y29: مسدده | Z29: 0.45 | AA29: 22306.95 | AB29: 22306.95 | AC29: 22306.95 | AD29: محصله | AE29: A | AF29: 1
A30: 87 | B30: 2020-01-01 | C30: اصدار | D30: M | E30: S | F30: - | G30: INVO 22 | H30: CUST 22 | I30: B | J30: W | K30: 121 | L30: 1450000 | M30: 58140.7 | N30: 61625 | O30: 61625 | P30: 54375 | Q30: 54375 | R30: 0 | S30: 36769.85075 | T30: 0.0425 | U30: 0.0375 | V30: محصل | W30: شيك | X30: 36769.85075 | Y30: مسدده | Z30: 0.45 | AA30: 24855.14925 | AB30: 17605.14925 | AC30: 24855.14925 | AD30: محصله | AE30: A | AF30: 1
A31: 90 | B31: 2020-01-01 | C31: اصدار | D31: M | E31: S | F31: - | G31: INVO 23 | H31: CUST 23 | I31: B | J31: W | K31: 122 | L31: 660000 | M31: 24832.5 | N31: 26400 | O31: 26400 | P31: 24750 | Q31: 24750 | R31: 0 | S31: 15784.10625 | T31: 0.04 | U31: 0.0375 | V31: محصل | W31: فيزا | X31: 15784.10625 | Y31: مسدده | Z31: 0.45 | AA31: 10615.89375 | AB31: 8965.89375 | AC31: 10615.89375 | AD31: محصله | AE31: A | AF31: 1
A32: 91 | B32: 2020-01-01 | C32: اصدار | D32: M | E32: S | F32: - | G32: INVO 24 | H32: CUST 24 | I32: B | J32: W | K32: 123 | L32: 730000 | M32: 25800 | N32: 27375 | O32: 27375 | P32: 27375 | Q32: 27375 | R32: 0 | S32: 16345.5 | T32: 0.0375 | U32: 0.0375 | V32: محصل | W32: تحويل بنكي | X32: 16345.5 | Y32: مسدده | Z32: 0.45 | AA32: 11029.5 | AB32: 11029.5 | AC32: 11029.5 | AD32: محصله | AE32: A | AF32: 1
A33: 93 | B33: 2020-01-01 | C33: اصدار | D33: M | E33: S | F33: - | G33: INVO 25 | H33: CUST 25 | I33: B | J33: W | K33: 124 | L33: 675000 | M33: 23853 | N33: 25314 | O33: 25314 | P33: 23625 | Q33: 18563 | R33: -5062 | S33: 15116.8425 | T33: 0.03750222222 | U33: 0.035 | V33: محصل | W33: كاش | X33: 15116.8425 | Y33: مسدده | Z33: 0.45 | AA33: 10197.1575 | AB33: 3446.1575 | AC33: 10197.1575 | AD33: محصله | AE33: A | AF33: 1
A34: 101 | B34: 2020-01-01 | C34: اصدار | D34: M | E34: S | F34: - | G34: INVO 26 | H34: CUST 26 | I34: B | J34: W | K34: 125 | L34: 440000 | M34: 15530 | N34: 16500 | O34: 16500 | P34: 17600 | Q34: 17600 | R34: 0 | S34: 9860.925 | T34: 0.0375 | U34: 0.04 | V34: محصل | W34: كاش | X34: 9860.925 | Y34: مسدده | Z34: 0.45 | AA34: 6639.075 | AB34: 7739.075 | AC34: 6639.075 | AD34: محصله | AE34: A | AF34: 1
A35: 103 | B35: 2020-01-01 | C35: اصدار | D35: M | E35: S | F35: - | G35: INVO 27 | H35: CUST 27 | I35: B | J35: W | K35: 126 | L35: 1665000 | M35: 58909 | N35: 62438 | O35: 62438 | P35: 62438 | Q35: 62437.5 | R35: -0.5 | S35: 37254.4025 | T35: 0.0375003003 | U35: 0.0375003003 | V35: محصل | W35: تحويل بنكي | X35: 37254.4025 | Y35: مسدده | Z35: 0.45 | AA35: 25183.5975 | AB35: 25183.0975 | AC35: 25183.5975 | AD35: محصله | AE35: A | AF35: 1
A36: 106 | B36: 2020-01-01 | C36: اصدار | D36: M | E36: S | F36: - | G36: INVO 28 | H36: CUST 28 | I36: B | J36: W | K36: 127 | L36: 330000 | M36: 11635 | N36: 12375 | O36: 12375 | P36: 10000 | Q36: 10000 | R36: 0 | S36: 7401.0375 | T36: 0.0375 | U36: 0.0303030303 | V36: محصل | W36: كاش | X36: 7401.0375 | Y36: مسدده | Z36: 0.45 | AA36: 4973.9625 | AB36: 2598.9625 | AC36: 4973.9625 | AD36: محصله | AE36: A | AF36: 1
A37: 107 | B37: 2020-01-01 | C37: اصدار | D37: M | E37: S | F37: - | G37: INVO 29 | H37: CUST 29 | I37: B | J37: W | K37: 128 | L37: 810000 | M37: 28633 | N37: 30376 | O37: 30376 | P37: 26250 | Q37: 28500 | R37: 2250 | S37: 18135.3925 | T37: 0.03750123457 | U37: 0.03240740741 | V37: محصل | W37: تحويل بنكي | X37: 18135.3925 | Y37: مسدده | Z37: 0.45 | AA37: 12240.6075 | AB37: 10364.6075 | AC37: 12240.6075 | AD37: محصله | AE37: A | AF37: 1
A38: 109 | B38: 2020-01-01 | C38: اصدار | D38: M | E38: S | F38: - | G38: INVO 30 | H38: CUST 30 | I38: B | J38: W | K38: 129 | L38: 540000 | M38: 19072 | N38: 20250 | O38: 20250 | P38: 20250 | Q38: 20250 | R38: 0 | S38: 12096.72 | T38: 0.0375 | U38: 0.0375 | V38: محصل | W38: كاش | X38: 12096.72 | Y38: مسدده | Z38: 0.45 | AA38: 8153.28 | AB38: 8153.28 | AC38: 8153.28 | AD38: محصله | AE38: A | AF38: 1
A39: 110 | B39: 2020-01-01 | C39: اصدار | D39: M | E39: S | F39: - | G39: INVO 31 | H39: CUST 31 | I39: B | J39: W | K39: 130 | L39: 800000 | M39: 28278 | N39: 30000 | O39: 30000 | P39: 30000 | Q39: 30000 | R39: 0 | S39: 17911.155 | T39: 0.0375 | U39: 0.0375 | V39: محصل | W39: شيك | X39: 17911.155 | Y39: مسدده | Z39: 0.45 | AA39: 12088.845 | AB39: 12088.845 | AC39: 12088.845 | AD39: محصله | AE39: A | AF39: 1
A40: 112 | B40: 2020-01-01 | C40: اصدار | D40: M | E40: S | F40: - | G40: INVO 32 | H40: CUST 32 | I40: B | J40: W | K40: 131 | L40: 850000 | M40: 30049 | N40: 31875 | O40: 31875 | P40: 31025 | Q40: 31025 | R40: 0 | S40: 19029.0525 | T40: 0.0375 | U40: 0.0365 | V40: محصل | W40: كاش | X40: 19029.0525 | Y40: مسدده | Z40: 0.45 | AA40: 12845.9475 | AB40: 11995.9475 | AC40: 12845.9475 | AD40: محصله | AE40: A | AF40: 1
A41: 113 | B41: 2020-01-01 | C41: اصدار | D41: M | E41: S | F41: - | G41: INVO 33 | H41: CUST 33 | I41: B | J41: W | K41: 132 | L41: 810000 | M41: 28633 | N41: 30376 | O41: 30376 | P41: 28350 | Q41: 22275 | R41: -6075 | S41: 18135.3925 | T41: 0.03750123457 | U41: 0.035 | V41: محصل | W41: شيك | X41: 18135.3925 | Y41: مسدده | Z41: 0.45 | AA41: 12240.6075 | AB41: 4139.6075 | AC41: 12240.6075 | AD41: محصله | AE41: A | AF41: 1
A42: 114 | B42: 2020-01-01 | C42: اصدار | D42: M | E42: S | F42: - | G42: INVO 34 | H42: CUST 34 | I42: B | J42: W | K42: 133 | L42: 1350000 | M42: 47750 | N42: 50625 | O42: 50625 | P42: 40500 | R42: -40500 | S42: 30211.875 | T42: 0.0375 | U42: 0.03 | V42: غير محصل | X42: 30211.875 | Y42: مسدده | Z42: 0.45 | AA42: 20413.125 | AB42: -30211.875 | AC42: 20413.125 | AD42: محصله | AE42: A | AF42: 1
A43: 115 | B43: 2020-01-01 | C43: اصدار | D43: M | E43: S | F43: - | G43: INVO 35 | H43: CUST 35 | I43: B | J43: W | K43: 134 | L43: 540000 | M43: 19072 | N43: 20250 | O43: 20250 | P43: 20250 | R43: -20250 | S43: 12096.72 | T43: 0.0375 | U43: 0.0375 | V43: غير محصل | X43: 12096.72 | Y43: مسدده | Z43: 0.45 | AA43: 8153.28 | AB43: -12096.72 | AC43: 8153.28 | AD43: محصله | AE43: A | AF43: 1
A44: 117 | B44: 2020-01-01 | C44: اصدار | D44: M | E44: S | F44: - | G44: INVO 36 | H44: CUST 36 | I44: B | J44: W | K44: 135 | L44: 490000 | M44: 17304 | N44: 18378 | O44: 18378 | P44: 15000 | Q44: 15000 | R44: 0 | S44: 10980.54 | T44: 0.03750612245 | U44: 0.0306122449 | V44: محصل | W44: كاش | X44: 10980.54 | Y44: مسدده | Z44: 0.45 | AA44: 7397.46 | AB44: 4019.46 | AC44: 7397.46 | AD44: محصله | AE44: A | AF44: 1
A45: 118 | B45: 2020-01-01 | C45: اصدار | D45: M | E45: S | F45: - | G45: INVO 37 | H45: CUST 37 | I45: B | J45: W | K45: 136 | L45: 540000 | M45: 19071 | N45: 20250 | O45: 20250 | P45: 18900 | Q45: 18900 | R45: 0 | S45: 12097.1475 | T45: 0.0375 | U45: 0.035 | V45: محصل | W45: كاش | X45: 12097.1475 | Y45: مسدده | Z45: 0.45 | AA45: 8152.8525 | AB45: 6802.8525 | AC45: 8152.8525 | AD45: محصله | AE45: A | AF45: 1
A46: 125 | B46: 2020-01-01 | C46: اصدار | D46: M | E46: S | F46: - | G46: INVO 38 | H46: CUST 38 | I46: B | J46: W | K46: 137 | L46: 685000 | M46: 24207 | N46: 25688 | O46: 25688 | P46: 25688 | Q46: 25688 | R46: 0 | S46: 15339.5075 | T46: 0.03750072993 | U46: 0.03750072993 | V46: محصل | W46: كاش | X46: 15339.5075 | Y46: مسدده | Z46: 0.45 | AA46: 10348.4925 | AB46: 10348.4925 | AC46: 10348.4925 | AD46: محصله | AE46: A | AF46: 1
A47: 127 | B47: 2020-01-01 | C47: اصدار | D47: M | E47: S | F47: - | G47: INVO 39 | H47: CUST 39 | I47: B | J47: W | K47: 138 | L47: 440000 | M47: 15531 | N47: 16501 | O47: 22000 | P47: 22000 | Q47: 16501 | R47: -5499 | S47: 9861.4975 | T47: 0.03750227273 | U47: 0.05 | V47: محصل | W47: كاش | X47: 9861.4975 | Y47: مسدده | Z47: 0.45 | AA47: 6639.5025 | AB47: 6639.5025 | AC47: 6639.5025 | AD47: محصله | AE47: A | AF47: 1
A48: 129 | B48: 2020-01-01 | C48: اصدار | D48: M | E48: S | F48: - | G48: INVO 40 | H48: CUST 40 | I48: B | J48: W | K48: 139 | L48: 265000 | M48: 9334 | N48: 9938 | O48: 9938 | P48: 11607 | R48: -11607 | S48: 5947.715 | T48: 0.03750188679 | U48: 0.0438 | V48: غير محصل | X48: 5947.715 | Y48: مسدده | Z48: 0.45 | AA48: 3990.285 | AB48: -5947.715 | AC48: 3990.285 | AD48: محصله | AE48: A | AF48: 1
A49: 132 | B49: 2020-01-01 | C49: اصدار | D49: M | E49: S | F49: - | G49: INVO 41 | H49: CUST 41 | I49: B | J49: W | K49: 140 | L49: 720000 | M49: 25446 | N49: 27001 | O49: 27001 | P49: 25200 | Q49: 25200 | R49: 0 | S49: 16122.835 | T49: 0.03750138889 | U49: 0.035 | V49: محصل | W49: شيك | X49: 16122.835 | Y49: مسدده | Z49: 0.45 | AA49: 10878.165 | AB49: 9077.165 | AC49: 10878.165 | AD49: محصله | AE49: A | AF49: 1
A50: 135 | B50: 2020-01-01 | C50: اصدار | D50: M | E50: S | F50: - | G50: INVO 42 | H50: CUST 42 | I50: B | J50: W | K50: 141 | L50: 324000 | M50: 11423 | N50: 12150 | O50: 12150 | P50: 11340 | Q50: 11340 | R50: 0 | S50: 7266.6675 | T50: 0.0375 | U50: 0.035 | V50: محصل | W50: كاش | X50: 7266.6675 | Y50: مسدده | Z50: 0.45 | AA50: 4883.3325 | AB50: 4073.3325 | AC50: 4883.3325 | AD50: محصله | AE50: A | AF50: 1
A51: 140 | B51: 2020-01-01 | C51: اصدار | D51: M | E51: S | F51: - | G51: INVO 43 | H51: CUST 43 | I51: B | J51: W | K51: 142 | L51: 1500000 | M51: 60147.31 | N51: 63750 | O51: 63750 | P51: 48750 | Q51: 48750 | R51: 0 | S51: 38037.02498 | T51: 0.0425 | U51: 0.0325 | V51: محصل | W51: شيك | X51: 38037.02498 | Y51: مسدده | Z51: 0.45 | AA51: 25712.97502 | AB51: 10712.97502 | AC51: 25712.97502 | AD51: محصله | AE51: A | AF51: 1
A52: 141 | B52: 2020-01-01 | C52: اصدار | D52: M | E52: S | F52: - | G52: INVO 44 | H52: CUST 44 | I52: B | J52: W | K52: 143 | L52: 540000 | M52: 21620.4 | N52: 22950 | O52: 22950 | P52: 20250 | Q52: 20250 | R52: 0 | S52: 13707.279 | T52: 0.0425 | U52: 0.0375 | V52: محصل | W52: كاش | X52: 13707.279 | Y52: مسدده | Z52: 0.45 | AA52: 9242.721 | AB52: 6542.721 | AC52: 9242.721 | AD52: محصله | AE52: A | AF52: 1
A53: 142 | B53: 2020-01-01 | C53: اصدار | D53: M | E53: S | F53: - | G53: INVO 45 | H53: CUST 45 | I53: B | J53: W | K53: 144 | L53: 540000 | M53: 21620.4 | N53: 22950 | O53: 22950 | P53: 18900 | Q53: 14040 | R53: -4860 | S53: 13707.279 | T53: 0.0425 | U53: 0.035 | V53: محصل | W53: كاش | X53: 13707.279 | Y53: مسدده | Z53: 0.45 | AA53: 9242.721 | AB53: 332.721 | AC53: 9242.721 | AD53: محصله | AE53: A | AF53: 1
A54: 143 | B54: 2020-01-01 | C54: اصدار | D54: M | E54: S | F54: - | G54: INVO 46 | H54: CUST 46 | I54: B | J54: W | K54: 145 | L54: 615000 | M54: 24630.78 | N54: 26138 | O54: 26138 | P54: 21525 | Q54: 15990 | R54: -5535 | S54: 15608.34155 | T54: 0.04250081301 | U54: 0.035 | V54: محصل | W54: كاش | X54: 15608.34155 | Y54: مسدده | Z54: 0.45 | AA54: 10529.65845 | AB54: 381.65845 | AC54: 10529.65845 | AD54: محصله | AE54: A | AF54: 1
A55: 144 | B55: 2020-01-01 | C55: اصدار | D55: M | E55: S | F55: - | G55: INVO 47 | H55: CUST 47 | I55: B | J55: W | K55: 146 | L55: 1500000 | M55: 60147.31 | N55: 63750 | O55: 63750 | P55: 52500 | Q55: 52500 | R55: 0 | S55: 38037.02498 | T55: 0.0425 | U55: 0.035 | V55: محصل | W55: كاش | X55: 38037.02498 | Y55: مسدده | Z55: 0.45 | AA55: 25712.97502 | AB55: 14462.97502 | AC55: 25712.97502 | AD55: محصله | AE55: A | AF55: 1
A56: 147 | B56: 2020-01-01 | C56: اصدار | D56: M | E56: S | F56: - | G56: INVO 48 | H56: CUST 48 | I56: B | J56: W | K56: 147 | L56: 360000 | M56: 14396.6 | N56: 15300 | O56: 15300 | P56: 12600 | Q56: 12600 | R56: 0 | S56: 9145.4535 | T56: 0.0425 | U56: 0.035 | V56: محصل | W56: فيزا | X56: 9145.4535 | Y56: مسدده | Z56: 0.45 | AA56: 6154.5465 | AB56: 3454.5465 | AC56: 6154.5465 | AD56: محصله | AE56: A | AF56: 1
A57: 148 | B57: 2020-01-01 | C57: اصدار | D57: M | E57: S | F57: - | G57: INVO 49 | H57: CUST 49 | I57: B | J57: W | K57: 148 | L57: 495000 | M57: 19814.92 | N57: 21038 | O57: 21038 | P57: 19305 | Q57: 19305 | R57: 0 | S57: 12567.1217 | T57: 0.0425010101 | U57: 0.039 | V57: محصل | W57: شيك | X57: 12567.1217 | Y57: مسدده | Z57: 0.45 | AA57: 8470.8783 | AB57: 6737.8783 | AC57: 8470.8783 | AD57: محصله | AE57: A | AF57: 1
A58: 149 | B58: 2020-01-01 | C58: اصدار | D58: M | E58: S | F58: - | G58: INVO 50 | H58: CUST 50 | I58: B | J58: W | K58: 149 | L58: 730000 | M58: 29245.51 | N58: 31025 | O58: 31025 | P58: 27375 | Q58: 27375 | R58: 0 | S58: 18522.54448 | T58: 0.0425 | U58: 0.0375 | V58: محصل | W58: كاش | X58: 18522.54448 | Y58: مسدده | Z58: 0.45 | AA58: 12502.45552 | AB58: 8852.455525 | AC58: 12502.45552 | AD58: محصله | AE58: A | AF58: 1
A59: 150 | B59: 2020-01-01 | C59: اصدار | D59: M | E59: S | F59: - | G59: INVO 51 | H59: CUST 51 | I59: B | J59: W | K59: 150 | L59: 440000 | M59: 17607.18 | N59: 18700 | O59: 18700 | P59: 14300 | Q59: 14300 | R59: 0 | S59: 11172.93055 | T59: 0.0425 | U59: 0.0325 | V59: محصل | W59: كاش | X59: 11172.93055 | Y59: مسدده | Z59: 0.45 | AA59: 7527.06945 | AB59: 3127.06945 | AC59: 7527.06945 | AD59: محصله | AE59: A | AF59: 1
A60: 151 | B60: 2020-01-01 | C60: اصدار | D60: M | E60: S | F60: - | G60: INVO 52 | H60: CUST 52 | I60: B | J60: W | K60: 151 | L60: 296100 | M60: 8337.11 | N60: 8883 | O60: 9623.25 | P60: 6662 | Q60: 6662 | R60: 0 | S60: 6506.92365 | T60: 0.03 | U60: 0.02249915569 | V60: محصل | W60: كاش | X60: 6506.92365 | Y60: مسدده | Z60: 0.3 | AA60: 2376.07635 | AB60: 155.07635 | AC60: 0 | AD60: واجبه التحصيل | AE60: A | AF60: 1
A61: 152 | B61: 2020-01-01 | C61: اصدار | D61: M | E61: S | F61: - | G61: INVO 53 | H61: CUST 53 | I61: B | J61: W | K61: 152 | L61: 378000 | M61: 15118.98 | N61: 16065 | O61: 16065 | P61: 14175 | Q61: 13230 | R61: -945 | S61: 9601.63605 | T61: 0.0425 | U61: 0.0375 | V61: محصل | W61: كاش | X61: 9601.63605 | Y61: مسدده | Z61: 0.45 | AA61: 6463.36395 | AB61: 3628.36395 | AC61: 6463.36395 | AD61: محصله | AE61: A | AF61: 1
A62: 154 | B62: 2020-01-01 | C62: اصدار | D62: M | E62: S | F62: - | G62: INVO 54 | H62: CUST 54 | I62: B | J62: W | K62: 153 | L62: 540000 | M62: 21620.4 | N62: 22950 | O62: 22950 | P62: 20250 | Q62: 20250 | R62: 0 | S62: 13707.279 | T62: 0.0425 | U62: 0.0375 | V62: محصل | W62: فيزا | X62: 13707.279 | Y62: مسدده | Z62: 0.45 | AA62: 9242.721 | AB62: 6542.721 | AC62: 9242.721 | AD62: محصله | AE62: A | AF62: 1
A63: 155 | B63: 2020-01-01 | C63: اصدار | D63: M | E63: S | F63: - | G63: INVO 55 | H63: CUST 55 | I63: B | J63: W | K63: 154 | L63: 540000 | M63: 21620.4 | N63: 22950 | O63: 22950 | P63: 19940 | Q63: 19940 | R63: 0 | S63: 13707.279 | T63: 0.0425 | U63: 0.03692592593 | V63: محصل | W63: كاش | X63: 13707.279 | Y63: مسدده | Z63: 0.45 | AA63: 9242.721 | AB63: 6232.721 | AC63: 9242.721 | AD63: محصله | AE63: A | AF63: 1
A64: 156 | B64: 2020-01-01 | C64: اصدار | D64: M | E64: S | F64: - | G64: INVO 56 | H64: CUST 56 | I64: B | J64: W | K64: 155 | L64: 900000 | M64: 36067.99 | N64: 38250 | O64: 38250 | P64: 33750 | Q64: 33750 | R64: 0 | S64: 22830.93427 | T64: 0.0425 | U64: 0.0375 | V64: محصل | W64: شيك | X64: 22830.93427 | Y64: مسدده | Z64: 0.45 | AA64: 15419.06572 | AB64: 10919.06573 | AC64: 15419.06573 | AD64: محصله | AE64: A | AF64: 1
A65: 157 | B65: 2020-01-01 | C65: اصدار | D65: M | E65: S | F65: - | G65: INVO 57 | H65: CUST 57 | I65: B | J65: W | K65: 156 | L65: 684000 | M65: 27399.43 | N65: 29070 | O65: 29070 | P65: 23940 | R65: -23940 | S65: 17356.74367 | T65: 0.0425 | U65: 0.035 | V65: غير محصل | X65: 17356.74367 | Y65: مسدده | Z65: 0.45 | AA65: 11713.25633 | AB65: -17356.74367 | AC65: 11713.25633 | AD65: محصله | AE65: A | AF65: 1
A66: 158 | B66: 2020-01-01 | C66: اصدار | D66: M | E66: S | F66: - | G66: INVO 58 | H66: CUST 58 | I66: B | J66: W | K66: 157 | L66: 1500000 | M66: 60147.31 | N66: 63750 | O66: 63750 | P66: 52500 | R66: -52500 | S66: 38037.02498 | T66: 0.0425 | U66: 0.035 | V66: غير محصل | X66: 38037.02498 | Y66: مسدده | Z66: 0.45 | AA66: 25712.97502 | AB66: -38037.02498 | AC66: 25712.97502 | AD66: محصله | AE66: A | AF66: 1
A67: 159 | B67: 2020-01-01 | C67: اصدار | D67: M | E67: S | F67: - | G67: INVO 59 | H67: CUST 59 | I67: B | J67: W | K67: 158 | L67: 504000 | M67: 20175.64 | N67: 21420 | O67: 21420 | P67: 20009 | Q67: 20009 | R67: 0 | S67: 12794.9139 | T67: 0.0425 | U67: 0.03970039683 | V67: محصل | W67: شيك | X67: 12794.9139 | Y67: مسدده | Z67: 0.45 | AA67: 8625.0861 | AB67: 7214.0861 | AC67: 8625.0861 | AD67: محصله | AE67: A | AF67: 1
A68: 160 | B68: 2020-01-01 | C68: اصدار | D68: M | E68: S | F68: - | G68: INVO 60 | H68: CUST 60 | I68: B | J68: W | K68: 159 | L68: 620000 | M68: 24830.97 | N68: 26350 | O68: 26350 | P68: 21700 | Q68: 16120 | R68: -5580 | S68: 15734.76032 | T68: 0.0425 | U68: 0.035 | V68: محصل | W68: شيك | X68: 15734.76032 | Y68: مسدده | Z68: 0.45 | AA68: 10615.23968 | AB68: 385.239675 | AC68: 10615.23968 | AD68: محصله | AE68: A | AF68: 1
A69: 162 | B69: 2020-01-01 | C69: اصدار | D69: M | E69: S | F69: - | G69: INVO 61 | H69: CUST 61 | I69: B | J69: W | K69: 160 | L69: 810000 | M69: 32456.09 | N69: 34425 | O69: 34425 | P69: 28350 | Q69: 21060 | R69: -7290 | S69: 20550.02153 | T69: 0.0425 | U69: 0.035 | V69: محصل | W69: كاش | X69: 20550.02153 | Y69: مسدده | Z69: 0.45 | AA69: 13874.97847 | AB69: 509.978475 | AC69: 13874.97847 | AD69: محصله | AE69: A | AF69: 1
A70: 163 | B70: 2020-01-01 | C70: اصدار | D70: M | E70: S | F70: - | G70: INVO 62 | H70: CUST 62 | I70: B | J70: W | K70: 161 | L70: 684000 | M70: 27399.43 | N70: 29070 | O70: 29070 | P70: 23940 | Q70: 23940 | R70: 0 | S70: 17356.74367 | T70: 0.0425 | U70: 0.035 | V70: محصل | W70: تحويل بنكي | X70: 17356.74367 | Y70: مسدده | Z70: 0.45 | AA70: 11713.25633 | AB70: 6583.256325 | AC70: 11713.25633 | AD70: محصله | AE70: A | AF70: 1
A71: 164 | B71: 2020-01-01 | C71: اصدار | D71: M | E71: S | F71: - | G71: INVO 63 | H71: CUST 63 | I71: B | J71: W | K71: 162 | L71: 620000 | M71: 24830.97 | N71: 26350 | O71: 26350 | P71: 21700 | Q71: 21700 | R71: 0 | S71: 15734.76032 | T71: 0.0425 | U71: 0.035 | V71: محصل | W71: كاش | X71: 15734.76032 | Y71: مسدده | Z71: 0.45 | AA71: 10615.23968 | AB71: 5965.239675 | AC71: 10615.23968 | AD71: محصله | AE71: A | AF71: 1
A72: 165 | B72: 2020-01-01 | C72: اصدار | D72: M | E72: S | F72: - | G72: INVO 64 | H72: CUST 64 | I72: B | J72: W | K72: 163 | L72: 990000 | M72: 39679.89 | N72: 42075 | O72: 42075 | P72: 34650 | Q72: 27225 | R72: -7425 | S72: 25111.84703 | T72: 0.0425 | U72: 0.035 | V72: محصل | W72: كاش | X72: 25111.84703 | Y72: مسدده | Z72: 0.45 | AA72: 16963.15297 | AB72: 2113.152975 | AC72: 16963.15297 | AD72: محصله | AE72: A | AF72: 1
A73: 166 | B73: 2020-01-01 | C73: اصدار | D73: M | E73: S | F73: - | G73: INVO 65 | H73: CUST 65 | I73: B | J73: W | K73: 164 | L73: 685000 | M73: 27440.04 | N73: 29113 | O73: 29113 | P73: 22263 | Q73: 22263 | R73: =Q73-P73 -> 0 | S73: 17382.3829 | T73: 0.04250072993 | U73: 0.03250072993 | V73: محصل | W73: فيزا | X73: 17382.3829 | Y73: مسدده | Z73: 0.45 | AA73: 11730.6171 | AB73: 4880.6171 | AC73: 11730.6171 | AD73: محصله | AE73: A | AF73: 1
A74: 168 | B74: 2020-01-01 | C74: اصدار | D74: M | E74: S | F74: - | G74: INVO 66 | H74: CUST 66 | I74: B | J74: W | K74: 165 | L74: 560000 | M74: 19780 | N74: 21000 | O74: 21000 | P74: 21000 | Q74: 21000 | R74: 0 | S74: 12544.05 | T74: 0.0375 | U74: 0.0375 | V74: محصل | W74: كاش | X74: 12544.05 | Y74: مسدده | Z74: 0.45 | AA74: 8455.95 | AB74: 8455.95 | AC74: 8455.95 | AD74: محصله | AE74: A | AF74: 1
A75: 171 | B75: 2020-01-01 | C75: اصدار | D75: M | E75: S | F75: - | G75: INVO 67 | H75: CUST 67 | I75: B | J75: W | K75: 166 | L75: 400500 | M75: 14133 | N75: 15020 | O75: 15020 | P75: 17542 | Q75: 13784 | R75: -3758 | S75: 8978.1425 | T75: 0.0375031211 | U75: 0.04380024969 | V75: محصل | W75: كاش | X75: 8978.1425 | Y75: مسدده | Z75: 0.45 | AA75: 6041.8575 | AB75: 4805.8575 | AC75: 6041.8575 | AD75: محصله | AE75: A | AF75: 1
A76: 172 | B76: 2020-01-01 | C76: اصدار | D76: M | E76: S | F76: - | G76: INVO 68 | H76: CUST 68 | I76: B | J76: W | K76: 167 | L76: 810000 | M76: 28633 | N76: 30376 | O76: 30376 | P76: 26973 | Q76: 26973 | R76: 0 | S76: 18135.3925 | T76: 0.03750123457 | U76: 0.0333 | V76: محصل | W76: شيك | X76: 18135.3925 | Y76: مسدده | Z76: 0.45 | AA76: 12240.6075 | AB76: 8837.6075 | AC76: 12240.6075 | AD76: محصله | AE76: A | AF76: 1
A77: 174 | B77: 2020-01-01 | C77: اصدار | D77: M | E77: S | F77: - | G77: INVO 69 | H77: CUST 69 | I77: B | J77: W | K77: 168 | L77: 640000 | M77: 22615 | N77: 24002 | O77: 24002 | P77: 22400 | Q77: 17600 | R77: -4800 | S77: 14334.0875 | T77: 0.037503125 | U77: 0.035 | V77: محصل | W77: كاش | X77: 14334.0875 | Y77: مسدده | Z77: 0.45 | AA77: 9667.9125 | AB77: 3265.9125 | AC77: 9667.9125 | AD77: محصله | AE77: A | AF77: 1
A78: 177 | B78: 2020-01-01 | C78: اصدار | D78: M | E78: S | F78: - | G78: INVO 70 | H78: CUST 70 | I78: B | J78: W | K78: 169 | L78: 495000 | M78: 13971.67 | N78: 14850 | O78: 16087.5 | P78: 12375 | Q78: 11138 | R78: -1237 | S78: 10868.07405 | T78: 0.03 | U78: 0.025 | V78: محصل | W78: كاش | X78: 10868.07405 | Y78: مسدده | Z78: 0.3 | AA78: 3981.92595 | AB78: 269.92595 | AC78: 3981.92595 | AD78: محصله | AE78: A | AF78: 1
A79: 178 | B79: 2020-01-01 | C79: اصدار | D79: M | E79: S | F79: - | G79: INVO 71 | H79: CUST 71 | I79: B | J79: W | K79: 170 | L79: 380700 | M79: 15227.57 | N79: 16180 | O79: 16180 | P79: 15228 | Q79: 15228 | R79: 0 | S79: 9670.213825 | T79: 0.04250065669 | U79: 0.04 | V79: محصل | W79: فيزا | X79: 9670.213825 | Y79: مسدده | Z79: 0.45 | AA79: 6509.786175 | AB79: 5557.786175 | AC79: 6509.786175 | AD79: محصله | AE79: A | AF79: 1
A80: 179 | B80: 2020-01-01 | C80: اصدار | D80: M | E80: S | F80: - | G80: INVO 72 | H80: CUST 72 | I80: B | J80: W | K80: 171 | L80: 280000 | M80: 11186.02 | N80: 11900 | O80: 11900 | P80: 11200 | Q80: 11200 | R80: 0 | S80: 7117.97645 | T80: 0.0425 | U80: 0.04 | V80: محصل | W80: فيزا | X80: 7117.97645 | Y80: مسدده | Z80: 0.45 | AA80: 4782.02355 | AB80: 4082.02355 | AC80: 4782.02355 | AD80: محصله | AE80: A | AF80: 1
A81: 180 | B81: 2020-01-01 | C81: اصدار | D81: M | E81: S | F81: - | G81: INVO 73 | H81: CUST 73 | I81: B | J81: W | K81: 172 | L81: 450000 | M81: 18008.5 | N81: 19125 | O81: 19125 | P81: 18000 | Q81: 18000 | R81: 0 | S81: 11426.36625 | T81: 0.0425 | U81: 0.04 | V81: محصل | W81: فيزا | X81: 11426.36625 | Y81: مسدده | Z81: 0.45 | AA81: 7698.63375 | AB81: 6573.63375 | AC81: 7698.63375 | AD81: محصله | AE81: A | AF81: 1
A82: 185 | B82: 2020-01-01 | C82: اصدار | D82: M | E82: S | F82: - | G82: INVO 74 | H82: CUST 74 | I82: B | J82: W | K82: 173 | L82: 1170000 | M82: 46903.68 | N82: 49725 | O82: 49725 | P82: 40950 | Q82: 30420 | R82: -10530 | S82: 29673.6768 | T82: 0.0425 | U82: 0.035 | V82: محصل | W82: كاش | X82: 29673.6768 | Y82: مسدده | Z82: 0.45 | AA82: 20051.3232 | AB82: 746.3232 | AC82: 20051.3232 | AD82: محصله | AE82: A | AF82: 1
A83: 187 | B83: 2020-01-01 | C83: اصدار | D83: M | E83: S | F83: - | G83: INVO 75 | H83: CUST 75 | I83: B | J83: W | K83: 174 | L83: 540000 | M83: 21620.4 | N83: 22950 | O83: 22950 | P83: 20250 | R83: -20250 | S83: 13707.279 | T83: 0.0425 | U83: 0.0375 | V83: غير محصل | X83: 13707.279 | Y83: مسدده | Z83: 0.45 | AA83: 9242.721 | AB83: -13707.279 | AC83: 9242.721 | AD83: محصله | AE83: A | AF83: 1
A84: 188 | B84: 2020-01-01 | C84: اصدار | D84: M | E84: S | F84: - | G84: INVO 76 | H84: CUST 76 | I84: B | J84: W | K84: 175 | L84: 540000 | M84: 21620.4 | N84: 22950 | O84: 22950 | P84: 18900 | R84: -18900 | S84: 13707.279 | T84: 0.0425 | U84: 0.035 | V84: غير محصل | X84: 13707.279 | Y84: مسدده | Z84: 0.45 | AA84: 9242.721 | AB84: -13707.279 | AC84: 9242.721 | AD84: محصله | AE84: A | AF84: 1
A85: 189 | B85: 2020-01-01 | C85: اصدار | D85: M | E85: S | F85: - | G85: INVO 77 | H85: CUST 77 | I85: B | J85: W | K85: 176 | L85: 1650000 | M85: 66167.14 | N85: 70125 | O85: 70125 | P85: 57750 | R85: -57750 | S85: 41838.54765 | T85: 0.0425 | U85: 0.035 | V85: غير محصل | X85: 41838.54765 | Y85: مسدده | Z85: 0.45 | AA85: 28286.45235 | AB85: -41838.54765 | AC85: 28286.45235 | AD85: محصله | AE85: A | AF85: 1
A86: 199 | B86: 2020-01-01 | C86: اصدار | D86: M | E86: S | F86: A | G86: INVO 78 | H86: CUST 78 | I86: B | J86: W | K86: 177 | L86: 750000 | M86: 30047.35 | N86: 31875 | O86: 31875 | P86: 30000 | R86: -30000 | S86: 21884.25612 | T86: 0.0425 | U86: 0.04 | V86: غير محصل | X86: 21884.25612 | Y86: غير مسدده | Z86: 0.35 | AA86: 9990.743875 | AB86: -21884.25612 | AC86: 0 | AD86: مؤجلة لعدم السداد | AE86: A | AF86: 1
A87: 200 | B87: 2020-01-01 | C87: اصدار | D87: M | E87: S | F87: A | G87: INVO 79 | H87: CUST 79 | I87: B | J87: W | K87: 178 | L87: 990000 | M87: 39706.44 | N87: 42075 | O87: 42075 | P87: 34650 | Q87: 40795 | R87: 6145 | S87: 28872.6087 | T87: 0.0425 | U87: 0.035 | V87: محصل | W87: كاش | X87: 28872.6087 | Y87: غير مسدده | Z87: 0.35 | AA87: 13202.3913 | AB87: 11922.3913 | AC87: 0 | AD87: مؤجلة لعدم السداد | AE87: A | AF87: 1
A88: 203 | B88: 2020-01-01 | C88: اصدار | D88: M | E88: S | F88: A | G88: INVO 80 | H88: CUST 80 | I88: B | J88: W | K88: 179 | L88: 560000 | M88: 22400.2 | N88: 23800 | O88: 23800 | P88: 23800 | Q88: 23800 | R88: 0 | S88: 16351.9335 | T88: 0.0425 | U88: 0.0425 | V88: محصل | W88: فيزا | X88: 16351.9335 | Y88: مسدده | Z88: 0.35 | AA88: 7448.0665 | AB88: 7448.0665 | AC88: 0 | AD88: واجبه التحصيل | AE88: A | AF88: 1
A89: 209 | B89: 2020-01-01 | C89: اصدار | D89: M | E89: S | F89: A | G89: INVO 81 | H89: CUST 81 | I89: B | J89: W | K89: 180 | L89: 560000 | M89: 22397.2 | N89: 23800 | O89: 23800 | P89: 22400 | Q89: 22400 | R89: 0 | S89: 16352.931 | T89: 0.0425 | U89: 0.04 | V89: محصل | W89: كاش | X89: 16352.931 | Y89: غير مسدده | Z89: 0.35 | AA89: 7447.069 | AB89: 6047.069 | AC89: 0 | AD89: مؤجلة لعدم السداد | AE89: A | AF89: 1
A90: 210 | B90: 2020-01-01 | C90: اصدار | D90: M | E90: S | F90: A | G90: INVO 82 | H90: CUST 82 | I90: B | J90: W | K90: 181 | L90: 1350000 | M90: 54192 | N90: 57375 | O90: 57375 | P90: 54000 | Q90: 54000 | R90: 0 | S90: 39356.16 | T90: 0.0425 | U90: 0.04 | V90: محصل | W90: كاش | X90: 39356.16 | Y90: غير مسدده | Z90: 0.35 | AA90: 18018.84 | AB90: 14643.84 | AC90: 0 | AD90: مؤجلة لعدم السداد | AE90: A | AF90: 1
A91: 216 | B91: 2020-01-01 | C91: اصدار | D91: M | E91: S | F91: A | G91: INVO 83 | H91: CUST 83 | I91: B | J91: W | K91: 182 | L91: 223200 | M91: 8864 | N91: 9486 | O91: 9486 | P91: 8370 | Q91: 8370 | R91: 0 | S91: 6538.72 | T91: 0.0425 | U91: 0.0375 | V91: محصل | W91: فيزا | X91: 6538.72 | Y91: غير مسدده | Z91: 0.35 | AA91: 2947.28 | AB91: 1831.28 | AC91: 0 | AD91: مؤجلة لعدم السداد | AE91: A | AF91: 1
A92: 223 | B92: 2020-01-01 | C92: اصدار | D92: M | E92: S | F92: A | G92: INVO 84 | H92: CUST 84 | I92: B | J92: W | K92: 183 | L92: 1170000 | M92: 46950.4 | N92: 49725 | O92: 49725 | P92: 46800 | Q92: 46800 | R92: 0 | S92: 34113.992 | T92: 0.0425 | U92: 0.04 | V92: محصل | W92: كاش | X92: 34113.992 | Y92: غير مسدده | Z92: 0.35 | AA92: 15611.008 | AB92: 12686.008 | AC92: 0 | AD92: مؤجلة لعدم السداد | AE92: A | AF92: 1
A93: 234 | B93: 2020-01-01 | C93: اصدار | D93: M | E93: S | F93: - | G93: INVO 85 | H93: CUST 85 | I93: B | J93: W | K93: 184 | L93: 610000 | M93: 21504.25 | N93: 22875 | O93: 22875 | P93: 22875 | Q93: 22875 | R93: 0 | S93: 15724.83688 | T93: 0.0375 | U93: 0.0375 | V93: محصل | W93: كاش | X93: 15724.83688 | Y93: مسدده | Z93: 0.35 | AA93: 7150.163125 | AB93: 7150.163125 | AC93: 0 | AD93: واجبه التحصيل | AE93: A | AF93: 1
A94: 236 | B94: 2020-01-01 | C94: اصدار | D94: M | E94: S | F94: - | G94: INVO 86 | H94: CUST 86 | I94: B | J94: W | K94: 185 | L94: 610000 | M94: 21504.25 | N94: 22875 | O94: 22875 | P94: 18300 | Q94: 18300 | R94: 0 | S94: 15724.83688 | T94: 0.0375 | U94: 0.03 | V94: محصل | W94: فيزا | X94: 15724.83688 | Y94: مسدده | Z94: 0.35 | AA94: 7150.163125 | AB94: 2575.163125 | AC94: 4085.8075 | AD94: محصله | AE94: A | AF94: 1
A95: 248 | B95: 2020-01-01 | C95: اصدار | D95: M | E95: S | F95: - | G95: INVO 87 | H95: CUST 87 | I95: B | J95: W | K95: 186 | L95: 730000 | M95: 29245.51 | N95: 31025 | O95: 31025 | P95: 25550 | Q95: 25550 | R95: 0 | S95: 18522.54448 | T95: 0.0425 | U95: 0.035 | V95: محصل | W95: فيزا | X95: 18522.54448 | Y95: مسدده | Z95: 0.45 | AA95: 12502.45552 | AB95: 7027.455525 | AC95: 12502.45552 | AD95: محصله | AE95: A | AF95: 1
A96: 249 | B96: 2020-01-01 | C96: اصدار | D96: M | E96: S | F96: - | G96: INVO 88 | H96: CUST 88 | I96: B | J96: W | K96: 187 | L96: 560000 | M96: 22423.04 | N96: 23800 | O96: 23800 | P96: 19600 | R96: -19600 | S96: 14214.1504 | T96: 0.0425 | U96: 0.035 | V96: غير محصل | X96: 14214.1504 | Y96: مسدده | Z96: 0.45 | AA96: 9585.8496 | AB96: -14214.1504 | AC96: 9585.8496 | AD96: محصله | AE96: A | AF96: 1
A97: 253 | B97: 2020-01-01 | C97: اصدار | D97: M | E97: S | F97: - | G97: INVO 89 | H97: CUST 89 | I97: B | J97: W | K97: 188 | L97: 580000 | M97: 23225.68 | N97: 24650 | O97: 24650 | P97: 20300 | Q97: 20300 | R97: 0 | S97: 14721.0218 | T97: 0.0425 | U97: 0.035 | V97: محصل | W97: كاش | X97: 14721.0218 | Y97: مسدده | Z97: 0.45 | AA97: 9928.9782 | AB97: 5578.9782 | AC97: 9928.9782 | AD97: محصله | AE97: A | AF97: 1
A98: 257 | B98: 2020-01-01 | C98: اصدار | D98: M | E98: S | F98: - | G98: INVO 90 | H98: CUST 90 | I98: B | J98: W | K98: 189 | L98: 495000 | M98: 19814.92 | N98: 21038 | O98: 21038 | P98: 18563 | Q98: 18563 | R98: 0 | S98: 12567.1217 | T98: 0.0425010101 | U98: 0.0375010101 | V98: محصل | W98: فيزا | X98: 12567.1217 | Y98: مسدده | Z98: 0.45 | AA98: 8470.8783 | AB98: 5995.8783 | AC98: 8470.8783 | AD98: محصله | AE98: A | AF98: 1
A99: 259 | B99: 2020-01-01 | C99: اصدار | D99: M | E99: S | F99: - | G99: INVO 91 | H99: CUST 91 | I99: B | J99: W | K99: 190 | L99: 405000 | M99: 16203.02 | N99: 17213 | O99: 17213 | P99: 14175 | Q99: 12150 | R99: -2025 | S99: 10286.20895 | T99: 0.04250123457 | U99: 0.035 | V99: محصل | W99: كاش | X99: 10286.20895 | Y99: مسدده | Z99: 0.45 | AA99: 6926.79105 | AB99: 1863.79105 | AC99: 6926.79105 | AD99: محصله | AE99: A | AF99: 1
A100: 261 | B100: 2020-01-01 | C100: اصدار | D100: M | E100: S | F100: - | G100: INVO 92 | H100: CUST 92 | I100: B | J100: W | K100: 191 | L100: 504000 | M100: 20175.64 | N100: 21420 | O100: 21420 | P100: 18900 | Q100: 18900 | R100: 0 | S100: 12794.9139 | T100: 0.0425 | U100: 0.0375 | V100: محصل | W100: شيك | X100: 12794.9139 | Y100: مسدده | Z100: 0.45 | AA100: 8625.0861 | AB100: 6105.0861 | AC100: 8625.0861 | AD100: محصله | AE100: A | AF100: 1
A101: 263 | B101: 2020-01-01 | C101: اصدار | D101: M | E101: S | F101: - | G101: INVO 93 | H101: CUST 93 | I101: B | J101: W | K101: 192 | L101: 1500000 | M101: 60147.31 | N101: 63750 | O101: 63750 | P101: 52500 | Q101: 41250 | R101: -11250 | S101: 38037.02498 | T101: 0.0425 | U101: 0.035 | V101: محصل | W101: كاش | X101: 38037.02498 | Y101: مسدده | Z101: 0.45 | AA101: 25712.97502 | AB101: 3212.975025 | AC101: 25712.97502 | AD101: محصله | AE101: A | AF101: 1
A102: 265 | B102: 2020-01-01 | C102: اصدار | D102: M | E102: S | F102: - | G102: INVO 94 | H102: CUST 94 | I102: B | J102: W | K102: 193 | L102: 1170000 | M102: 46903.68 | N102: 49725 | O102: 49725 | P102: 40950 | Q102: 40950 | R102: 0 | S102: 29673.6768 | T102: 0.0425 | U102: 0.035 | V102: محصل | W102: شيك | X102: 29673.6768 | Y102: مسدده | Z102: 0.45 | AA102: 20051.3232 | AB102: 11276.3232 | AC102: 8911.6992 | AD102: محصله | AE102: A | AF102: 1
A103: 267 | B103: 2020-01-01 | C103: اصدار | D103: M | E103: S | F103: - | G103: INVO 95 | H103: CUST 95 | I103: B | J103: W | K103: 194 | L103: 504000 | M103: 20175.64 | N103: 21420 | O103: 21420 | P103: 17640 | Q103: 17640 | R103: 0 | S103: 12794.9139 | T103: 0.0425 | U103: 0.035 | V103: محصل | W103: كاش | X103: 12794.9139 | Y103: مسدده | Z103: 0.45 | AA103: 8625.0861 | AB103: 4845.0861 | AC103: 8625.0861 | AD103: محصله | AE103: A | AF103: 1
A104: 269 | B104: 2020-01-01 | C104: اصدار | D104: M | E104: S | F104: - | G104: INVO 96 | H104: CUST 96 | I104: B | J104: W | K104: 195 | L104: 610000 | M104: 24429.65 | N104: 25925 | O104: 25925 | P104: 25925 | Q104: 25925 | R104: 0 | S104: 15481.32462 | T104: 0.0425 | U104: 0.0425 | V104: محصل | W104: كاش | X104: 15481.32462 | Y104: مسدده | Z104: 0.45 | AA104: 10443.67538 | AB104: 10443.67538 | AC104: 10443.67538 | AD104: محصله | AE104: A | AF104: 1
A105: 272 | B105: 2020-01-01 | C105: اصدار | D105: M | E105: S | F105: - | G105: INVO 97 | H105: CUST 97 | I105: B | J105: W | K105: 196 | L105: 234000 | M105: 6577.9 | N105: 7020 | O105: 7605 | P105: 5265 | Q105: 5146 | R105: -119 | S105: 5145.2985 | T105: 0.03 | U105: 0.0225 | V105: محصل | W105: كاش | X105: 5145.2985 | Y105: مسدده | Z105: 0.3 | AA105: 1874.7015 | AB105: 0.7015 | AC105: 1874.7015 | AD105: محصله | AE105: A | AF105: 1
A106: 274 | B106: 2020-01-01 | C106: اصدار | D106: M | E106: S | F106: - | G106: INVO 98 | H106: CUST 98 | I106: B | J106: W | K106: 197 | L106: 296100 | M106: 8337.11 | N106: 8883 | O106: 9623.25 | P106: 8143 | Q106: 8143 | R106: 0 | S106: 6506.92365 | T106: 0.03 | U106: 0.02750084431 | V106: محصل | W106: كاش | X106: 6506.92365 | Y106: مسدده | Z106: 0.3 | AA106: 2376.07635 | AB106: 1636.07635 | AC106: 2376.07635 | AD106: محصله | AE106: A | AF106: 1
A107: 275 | B107: 2020-01-01 | C107: اصدار | D107: M | E107: S | F107: - | G107: INVO 99 | H107: CUST 99 | I107: B | J107: W | K107: 198 | L107: 684000 | M107: 27399.43 | N107: 29070 | O107: 29070 | P107: 25650 | Q107: 25650 | R107: 0 | S107: 17356.74367 | T107: 0.0425 | U107: 0.0375 | V107: محصل | W107: فيزا | X107: 17356.74367 | Y107: مسدده | Z107: 0.45 | AA107: 11713.25633 | AB107: 8293.256325 | AC107: 11713.25633 | AD107: محصله | AE107: A | AF107: 1
A108: 276 | B108: 2020-01-01 | C108: اصدار | D108: M | E108: S | F108: - | G108: INVO 100 | H108: CUST 100 | I108: B | J108: W | K108: 199 | L108: 685000 | M108: 27440.04 | N108: 29113 | O108: 29113 | P108: 29113 | R108: -29113 | S108: 17382.3829 | T108: 0.04250072993 | U108: 0.04250072993 | V108: غير محصل | X108: 17382.3829 | Y108: مسدده | Z108: 0.45 | AA108: 11730.6171 | AB108: -17382.3829 | AC108: 11730.6171 | AD108: محصله | AE108: A | AF108: 1
A109: 277 | B109: 2020-01-01 | C109: اصدار | D109: M | E109: S | F109: - | G109: INVO 101 | H109: CUST 101 | I109: B | J109: W | K109: 200 | L109: 504000 | M109: 20175.64 | N109: 21420 | O109: 21420 | P109: 18900 | Q109: 18900 | R109: 0 | S109: 12794.9139 | T109: 0.0425 | U109: 0.0375 | V109: محصل | W109: فيزا | X109: 12794.9139 | Y109: مسدده | Z109: 0.45 | AA109: 8625.0861 | AB109: 6105.0861 | AC109: 8625.0861 | AD109: محصله | AE109: A | AF109: 1
A110: 280 | B110: 2020-01-01 | C110: اصدار | D110: M | E110: S | F110: - | G110: INVO 102 | H110: CUST 102 | I110: B | J110: W | K110: 201 | L110: 540000 | M110: 21620.4 | N110: 22950 | O110: 22950 | P110: 18900 | Q110: 14850 | R110: -4050 | S110: 13707.279 | T110: 0.0425 | U110: 0.035 | V110: محصل | W110: كاش | X110: 13707.279 | Y110: مسدده | Z110: 0.45 | AA110: 9242.721 | AB110: 1142.721 | AC110: 9242.721 | AD110: محصله | AE110: A | AF110: 1
A111: 282 | B111: 2020-01-01 | C111: اصدار | D111: M | E111: S | F111: - | G111: INVO 103 | H111: CUST 103 | I111: B | J111: W | K111: 202 | L111: 630000 | M111: 25232.29 | N111: 26775 | O111: 26775 | P111: 23625 | Q111: 23625 | R111: 0 | S111: 15988.19602 | T111: 0.0425 | U111: 0.0375 | V111: محصل | W111: تحويل بنكي | X111: 15988.19602 | Y111: مسدده | Z111: 0.45 | AA111: 10786.80398 | AB111: 7636.803975 | AC111: 10786.80398 | AD111: محصله | AE111: A | AF111: 1
A112: 283 | B112: 2020-01-01 | C112: اصدار | D112: M | E112: S | F112: - | G112: INVO 104 | H112: CUST 104 | I112: B | J112: W | K112: 203 | L112: 292500 | M112: 11688.39 | N112: 12432 | O112: 12432 | P112: 12285 | Q112: 12285 | R112: 0 | S112: 7435.213275 | T112: 0.0425025641 | U112: 0.042 | V112: محصل | W112: فيزا | X112: 7435.213275 | Y112: مسدده | Z112: 0.45 | AA112: 4996.786725 | AB112: 4849.786725 | AC112: 4996.786725 | AD112: محصله | AE112: A | AF112: 1
A113: 285 | B113: 2020-01-01 | C113: اصدار | D113: M | E113: S | F113: - | G113: INVO 105 | H113: CUST 105 | I113: B | J113: W | K113: 204 | L113: 583200 | M113: 20600 | N113: 21870 | O113: 21870 | P113: 19250 | Q113: 19250 | R113: 0 | S113: 13063.5 | T113: 0.0375 | U113: 0.03300754458 | V113: محصل | W113: كاش | X113: 13063.5 | Y113: مسدده | Z113: 0.45 | AA113: 8806.5 | AB113: 6186.5 | AC113: 8806.5 | AD113: محصله | AE113: A | AF113: 1
A114: 286 | B114: 2020-01-01 | C114: اصدار | D114: M | E114: S | F114: - | G114: INVO 106 | H114: CUST 106 | I114: B | J114: W | K114: 205 | L114: 310000 | M114: 10930 | N114: 11628 | O114: 11628 | P114: 10850 | Q114: 10850 | R114: 0 | S114: 6955.425 | T114: 0.03750967742 | U114: 0.035 | V114: محصل | W114: كاش | X114: 6955.425 | Y114: مسدده | Z114: 0.45 | AA114: 4672.575 | AB114: 3894.575 | AC114: 4672.575 | AD114: محصله | AE114: A | AF114: 1
A115: 290 | B115: 2020-01-01 | C115: اصدار | D115: M | E115: S | F115: - | G115: INVO 107 | H115: CUST 107 | I115: B | J115: W | K115: 206 | L115: 324000 | M115: 11423 | N115: 12150 | O115: 12150 | P115: 11340 | Q115: 11340 | R115: 0 | S115: 7266.6675 | T115: 0.0375 | U115: 0.035 | V115: محصل | W115: كاش | X115: 7266.6675 | Y115: مسدده | Z115: 0.45 | AA115: 4883.3325 | AB115: 4073.3325 | AC115: 4883.3325 | AD115: محصله | AE115: A | AF115: 1
A116: 293 | B116: 2020-01-01 | C116: اصدار | D116: M | E116: S | F116: A | G116: INVO 108 | H116: CUST 108 | I116: B | J116: W | K116: 207 | L116: 610000 | M116: 24413 | N116: 25925 | O116: 25925 | P116: 24400 | Q116: 24400 | R116: 0 | S116: 17807.6775 | T116: 0.0425 | U116: 0.04 | V116: محصل | W116: كاش | X116: 17807.6775 | Y116: غير مسدده | Z116: 0.35 | AA116: 8117.3225 | AB116: 6592.3225 | AC116: 0 | AD116: مؤجلة لعدم السداد | AE116: A | AF116: 1
A117: 294 | B117: 2020-01-01 | C117: اصدار | D117: M | E117: S | F117: - | G117: INVO 109 | H117: CUST 109 | I117: B | J117: W | K117: 208 | L117: 540000 | M117: 19072 | N117: 20250 | O117: 20250 | P117: 20250 | Q117: 20250 | R117: 0 | S117: 12096.72 | T117: 0.0375 | U117: 0.0375 | V117: محصل | W117: كاش | X117: 12096.72 | Y117: مسدده | Z117: 0.45 | AA117: 8153.28 | AB117: 8153.28 | AC117: 8153.28 | AD117: محصله | AE117: A | AF117: 1
A118: 296 | B118: 2020-01-01 | C118: اصدار | D118: M | E118: S | F118: - | G118: INVO 110 | H118: CUST 110 | I118: B | J118: W | K118: 209 | L118: 351000 | M118: 15488 | N118: 16455 | O118: 16455 | P118: 15339 | Q118: 15338.7 | R118: -0.3 | S118: 9833.88 | T118: 0.04688034188 | U118: 0.0437008547 | V118: محصل | W118: فيزا | X118: 9833.88 | Y118: مسدده | Z118: 0.45 | AA118: 6621.12 | AB118: 5504.82 | AC118: 6621.12 | AD118: محصله | AE118: A | AF118: 1
A119: 299 | B119: 2020-01-01 | C119: اصدار | D119: M | E119: S | F119: - | G119: INVO 111 | H119: CUST 111 | I119: B | J119: W | K119: 210 | L119: 378000 | M119: 13335 | N119: 14175 | O119: 14175 | P119: 14000 | Q119: 10456 | R119: -3544 | S119: 8474.2875 | T119: 0.0375 | U119: 0.03703703704 | V119: محصل | W119: شيك | X119: 8474.2875 | Y119: مسدده | Z119: 0.45 | AA119: 5700.7125 | AB119: 1981.7125 | AC119: 5700.7125 | AD119: محصله | AE119: A | AF119: 1
A120: 300 | B120: 2020-01-01 | C120: اصدار | D120: M | E120: S | F120: - | G120: INVO 112 | H120: CUST 112 | I120: B | J120: W | K120: 211 | L120: 540000 | M120: 19070 | N120: 20250 | O120: 20250 | P120: 18900 | Q120: 18900 | R120: 0 | S120: 12097.575 | T120: 0.0375 | U120: 0.035 | V120: محصل | W120: شيك | X120: 12097.575 | Y120: مسدده | Z120: 0.45 | AA120: 8152.425 | AB120: 6802.425 | AC120: 8152.425 | AD120: محصله | AE120: A | AF120: 1
A121: 302 | B121: 2020-01-01 | C121: اصدار | D121: M | E121: S | F121: - | G121: INVO 113 | H121: CUST 113 | I121: B | J121: W | K121: 212 | L121: 553500 | M121: 22162.42 | N121: 23524 | O121: 23524 | P121: 19372.5 | Q121: 19373 | R121: 0.5 | S121: 14049.56545 | T121: 0.04250045167 | U121: 0.035 | V121: محصل | W121: كاش | X121: 14049.56545 | Y121: مسدده | Z121: 0.45 | AA121: 9474.43455 | AB121: 5323.43455 | AC121: 9474.43455 | AD121: محصله | AE121: A | AF121: 1
A122: 304 | B122: 2020-01-01 | C122: اصدار | D122: M | E122: S | F122: - | G122: INVO 114 | H122: CUST 114 | I122: B | J122: W | K122: 213 | L122: 135000 | M122: 5367.33 | N122: 5738 | O122: 5738 | P122: 4725 | Q122: 3444.53 | R122: -1280.47 | S122: 3443.466425 | T122: 0.0425037037 | U122: 0.035 | V122: محصل | W122: كاش | X122: 3443.466425 | Y122: مسدده | Z122: 0.45 | AA122: 2294.533575 | AB122: 1.063575 | AC122: 2294.533575 | AD122: محصله | AE122: A | AF122: 1
A123: 305 | B123: 2020-01-01 | C123: اصدار | D123: M | E123: S | F123: - | G123: INVO 115 | H123: CUST 115 | I123: B | J123: W | K123: 214 | L123: 765000 | M123: 30650.61 | N123: 32513 | O123: 32513 | P123: 28688 | Q123: 28688 | R123: 0 | S123: 19409.86422 | T123: 0.04250065359 | U123: 0.03750065359 | V123: محصل | W123: شيك | X123: 19409.86422 | Y123: مسدده | Z123: 0.45 | AA123: 13103.13578 | AB123: 9278.135775 | AC123: 13103.13578 | AD123: محصله | AE123: A | AF123: 1
A124: 310 | B124: 2020-01-01 | C124: اصدار | D124: M | E124: S | F124: - | G124: INVO 116 | H124: CUST 116 | I124: B | J124: W | K124: 215 | L124: 700000 | M124: 28041.55 | N124: 29750 | O124: 29750 | P124: 26250 | Q124: 26250 | R124: 0 | S124: 17762.23738 | T124: 0.0425 | U124: 0.0375 | V124: محصل | W124: فيزا | X124: 17762.23738 | Y124: مسدده | Z124: 0.45 | AA124: 11987.76262 | AB124: 8487.762625 | AC124: 11987.76262 | AD124: محصله | AE124: A | AF124: 1
A125: 311 | B125: 2020-01-01 | C125: اصدار | D125: M | E125: S | F125: - | G125: INVO 117 | H125: CUST 117 | I125: B | J125: W | K125: 216 | L125: 440000 | M125: 17607.18 | N125: 18700 | O125: 18700 | P125: 17600 | Q125: 17600 | R125: 0 | S125: 11172.93055 | T125: 0.0425 | U125: 0.04 | V125: محصل | W125: فيزا | X125: 11172.93055 | Y125: مسدده | Z125: 0.45 | AA125: 7527.06945 | AB125: 6427.06945 | AC125: 7527.06945 | AD125: محصله | AE125: A | AF125: 1
A126: 312 | B126: 2020-01-01 | C126: اصدار | D126: M | E126: S | F126: - | G126: INVO 118 | H126: CUST 118 | I126: B | J126: W | K126: 217 | L126: 495000 | M126: 19814.92 | N126: 21038 | O126: 21038 | P126: 19800 | Q126: 19800 | R126: 0 | S126: 12567.1217 | T126: 0.0425010101 | U126: 0.04 | V126: محصل | W126: فيزا | X126: 12567.1217 | Y126: مسدده | Z126: 0.45 | AA126: 8470.8783 | AB126: 7232.8783 | AC126: 8470.8783 | AD126: محصله | AE126: A | AF126: 1
A127: 316 | B127: 2020-01-01 | C127: اصدار | D127: M | E127: S | F127: - | G127: INVO 119 | H127: CUST 119 | I127: B | J127: W | K127: 218 | L127: 500000 | M127: 20015.11 | N127: 21250 | O127: 21250 | P127: 21250 | Q127: 21250 | R127: 0 | S127: 12693.54047 | T127: 0.0425 | U127: 0.0425 | V127: محصل | W127: شيك | X127: 12693.54047 | Y127: مسدده | Z127: 0.45 | AA127: 8556.459525 | AB127: 8556.459525 | AC127: 8556.459525 | AD127: محصله | AE127: A | AF127: 1
A128: 317 | B128: 2020-01-01 | C128: اصدار | D128: M | E128: S | F128: - | G128: INVO 120 | H128: CUST 120 | I128: B | J128: W | K128: 219 | L128: 1300000 | M128: 52120.87 | N128: 55250 | O128: 55250 | P128: 45500 | Q128: 33800 | R128: -11700 | S128: 32968.32807 | T128: 0.0425 | U128: 0.035 | V128: محصل | W128: كاش | X128: 32968.32807 | Y128: مسدده | Z128: 0.45 | AA128: 22281.67192 | AB128: 831.671925 | AC128: 22281.67193 | AD128: محصله | AE128: A | AF128: 1
A129: 318 | B129: 2020-01-01 | C129: اصدار | D129: M | E129: S | F129: - | G129: INVO 121 | H129: CUST 121 | I129: B | J129: W | K129: 220 | L129: 380700 | M129: 15227.57 | N129: 16180 | O129: 16180 | P129: 12373 | Q129: 12373 | R129: 0 | S129: 9670.213825 | T129: 0.04250065669 | U129: 0.03250065669 | V129: محصل | W129: فيزا | X129: 9670.213825 | Y129: مسدده | Z129: 0.45 | AA129: 6509.786175 | AB129: 2702.786175 | AC129: 6509.786175 | AD129: محصله | AE129: A | AF129: 1
A130: 320 | B130: 2020-01-01 | C130: اصدار | D130: M | E130: S | F130: - | G130: INVO 122 | H130: CUST 122 | I130: B | J130: W | K130: 221 | L130: 490000 | M130: 19616.62 | N130: 20828 | O130: 20828 | P130: 18377 | Q130: 18377 | R130: 0 | S130: 12441.89495 | T130: 0.04250612245 | U130: 0.03750408163 | V130: محصل | W130: شيك | X130: 12441.89495 | Y130: مسدده | Z130: 0.45 | AA130: 8386.10505 | AB130: 5935.10505 | AC130: 8386.10505 | AD130: محصله | AE130: A | AF130: 1
A131: 321 | B131: 2020-01-01 | C131: اصدار | D131: M | E131: S | F131: - | G131: INVO 123 | H131: CUST 123 | I131: B | J131: W | K131: 222 | L131: 620000 | M131: 24830.97 | N131: 26350 | O131: 26350 | P131: 26350 | Q131: 26350 | R131: 0 | S131: 15734.76032 | T131: 0.0425 | U131: 0.0425 | V131: محصل | W131: فيزا | X131: 15734.76032 | Y131: مسدده | Z131: 0.45 | AA131: 10615.23968 | AB131: 10615.23968 | AC131: 10615.23968 | AD131: محصله | AE131: A | AF131: 1
A132: 323 | B132: 2020-01-01 | C132: اصدار | D132: M | E132: S | F132: - | G132: INVO 124 | H132: CUST 124 | I132: B | J132: W | K132: 223 | L132: 378000 | M132: 15118.98 | N132: 16065 | O132: 16065 | P132: 12285 | Q132: 12285 | R132: 0 | S132: 9601.63605 | T132: 0.0425 | U132: 0.0325 | V132: محصل | W132: كاش | X132: 9601.63605 | Y132: مسدده | Z132: 0.45 | AA132: 6463.36395 | AB132: 2683.36395 | AC132: 6463.36395 | AD132: محصله | AE132: A | AF132: 1
A133: 328 | B133: 2020-01-01 | C133: اصدار | D133: M | E133: S | F133: - | G133: INVO 125 | H133: CUST 125 | I133: B | J133: W | K133: 224 | L133: 560000 | M133: 22423.04 | N133: 23800 | O133: 23800 | P133: 21000 | Q133: 21000 | R133: 0 | S133: 14214.1504 | T133: 0.0425 | U133: 0.0375 | V133: محصل | W133: فيزا | X133: 14214.1504 | Y133: مسدده | Z133: 0.45 | AA133: 9585.8496 | AB133: 6785.8496 | AC133: 9585.8496 | AD133: محصله | AE133: A | AF133: 1
A134: 332 | B134: 2020-01-01 | C134: اصدار | D134: M | E134: S | F134: - | G134: INVO 126 | H134: CUST 126 | I134: B | J134: W | K134: 225 | L134: 640000 | M134: 22600 | N134: 24000 | O134: 24000 | P134: 22400 | Q134: 22400 | R134: 0 | S134: 14338.5 | T134: 0.0375 | U134: 0.035 | V134: محصل | W134: كاش | X134: 14338.5 | Y134: مسدده | Z134: 0.45 | AA134: 9661.5 | AB134: 8061.5 | AC134: 9661.5 | AD134: محصله | AE134: A | AF134: 1
A135: 336 | B135: 2020-01-01 | C135: اصدار | D135: M | E135: S | F135: - | G135: INVO 127 | H135: CUST 127 | I135: B | J135: W | K135: 226 | L135: 240000 | M135: 6684.43 | N135: 7200 | O135: 7200 | P135: 5400 | Q135: 5040 | R135: -360 | S135: 4977.427025 | T135: 0.03 | U135: 0.0225 | V135: محصل | W135: فيزا | X135: 4977.427025 | Y135: مسدده | Z135: 0.35 | AA135: 2222.572975 | AB135: 62.572975 | AC135: 0 | AD135: محصله | AE135: A | AF135: 1
A136: 337 | B136: 2020-01-01 | C136: اصدار | D136: M | E136: S | F136: - | G136: INVO 128 | H136: CUST 128 | I136: B | J136: W | K136: 227 | L136: 362000 | M136: 10203.97 | N136: 10860 | O136: 10860 | P136: 8145 | R136: -8145 | S136: 7951.86855 | T136: 0.03 | U136: 0.0225 | V136: غير محصل | X136: 7951.86855 | Y136: مسدده | Z136: 0.3 | AA136: 2908.13145 | AB136: -7951.86855 | AC136: 2908.13145 | AD136: محصله | AE136: A | AF136: 1
A137: 338 | B137: 2020-01-01 | C137: اصدار | D137: M | E137: S | F137: - | G137: INVO 129 | H137: CUST 129 | I137: B | J137: W | K137: 228 | L137: 362000 | M137: 10203.97 | N137: 10860 | O137: 10860 | P137: 8145 | R137: =Q137-P137 -> -8145 | S137: 7951.86855 | T137: 0.03 | U137: 0.0225 | V137: غير محصل | X137: 7951.86855 | Y137: مسدده | Z137: 0.3 | AA137: 2908.13145 | AB137: -7951.86855 | AC137: 2908.13145 | AD137: محصله | AE137: A | AF137: 1
A138: 339 | B138: 2020-01-01 | C138: اصدار | D138: M | E138: S | F138: - | G138: INVO 130 | H138: CUST 130 | I138: B | J138: W | K138: 229 | L138: 193500 | M138: 5430.59 | N138: 5805 | O138: 5805 | P138: 4353.75 | Q138: 4353 | R138: -0.75 | S138: 4257.28185 | T138: 0.03 | U138: 0.0225 | V138: محصل | W138: كاش | X138: 4257.28185 | Y138: مسدده | Z138: 0.3 | AA138: 1547.71815 | AB138: 95.71815 | AC138: 1547.71815 | AD138: محصله | AE138: A | AF138: 1
A139: 340 | B139: 2020-01-01 | C139: اصدار | D139: M | E139: S | F139: - | G139: INVO 131 | H139: CUST 131 | I139: B | J139: W | K139: 230 | L139: 327000 | M139: 9212.46 | N139: 9810 | O139: 9810 | P139: 7357.5 | R139: -7357.5 | S139: 7184.4489 | T139: 0.03 | U139: 0.0225 | V139: غير محصل | X139: 7184.4489 | Y139: مسدده | Z139: 0.3 | AA139: 2625.5511 | AB139: -7184.4489 | AC139: 175.03674 | AD139: محصله | AE139: A | AF139: 1
A140: 341 | B140: 2020-01-01 | C140: اصدار | D140: M | E140: S | F140: - | G140: INVO 132 | H140: CUST 132 | I140: B | J140: W | K140: 231 | L140: 700000 | M140: 28041.55 | N140: 29750 | O140: 29750 | P140: 28000 | R140: -28000 | S140: 17762.23738 | T140: 0.0425 | U140: 0.04 | V140: غير محصل | X140: 17762.23738 | Y140: مسدده | Z140: 0.45 | AA140: 11987.76262 | AB140: -17762.23738 | AC140: 11987.76262 | AD140: محصله | AE140: A | AF140: 1
A141: 342 | B141: 2020-01-01 | C141: اصدار | D141: M | E141: S | F141: - | G141: INVO 133 | H141: CUST 133 | I141: B | J141: W | K141: 232 | L141: 1850000 | M141: 74193.58 | N141: 78625 | O141: 78625 | P141: 74000 | R141: -74000 | S141: 46907.24455 | T141: 0.0425 | U141: 0.04 | V141: غير محصل | X141: 46907.24455 | Y141: مسدده | Z141: 0.45 | AA141: 31717.75545 | AB141: -46907.24455 | AC141: 31717.75545 | AD141: محصله | AE141: A | AF141: 1
A142: 343 | B142: 2020-01-01 | C142: اصدار | D142: M | E142: S | F142: - | G142: INVO 134 | H142: CUST 134 | I142: B | J142: W | K142: 233 | L142: 313000 | M142: 7930 | N142: 8451 | O142: 8451 | P142: 7042.5 | R142: -7042.5 | S142: 7320.975 | T142: 0.027 | U142: 0.0225 | V142: غير محصل | X142: 7320.975 | Y142: مسدده | Z142: 0.15 | AA142: 1130.025 | AB142: -7320.975 | AC142: 0 | AD142: واجبه التحصيل | AE142: A | AF142: 1
A143: 344 | B143: 2020-01-01 | C143: اصدار | D143: M | E143: S | F143: A | G143: INVO 135 | H143: CUST 135 | I143: B | J143: W | K143: 234 | L143: 1357000 | M143: 54475.6 | N143: 57673 | O143: 57673 | P143: 54280 | Q143: 54280 | R143: 0 | S143: 39559.863 | T143: 0.04250036846 | U143: 0.04 | V143: محصل | W143: فيزا | X143: 39559.863 | Y143: مسدده | Z143: 0.35 | AA143: 18113.137 | AB143: 14720.137 | AC143: 5175.182 | AD143: محصله | AE143: A | AF143: 1
A144: 345 | B144: 2020-01-01 | C144: اصدار | D144: M | E144: S | F144: - | G144: INVO 136 | H144: CUST 136 | I144: B | J144: W | K144: 235 | L144: 267000 | M144: 7513 | N144: 8009 | O144: 8009 | P144: 6007.5 | R144: -6007.5 | S144: 6938.3975 | T144: 0.02999625468 | U144: 0.0225 | V144: غير محصل | X144: 6938.3975 | Y144: مسدده | Z144: 0.15 | AA144: 1070.6025 | AB144: -6938.3975 | AC144: 499.6145 | AD144: محصله | AE144: A | AF144: 1
A145: 346 | B145: 2020-01-01 | C145: اصدار | D145: M | E145: S | F145: - | G145: INVO 137 | H145: CUST 137 | I145: B | J145: W | K145: 236 | L145: 2500000 | M145: 47118.03 | N145: 50000 | O145: 50000 | P145: 50000 | Q145: 50000 | R145: 0 | S145: 45523.78715 | T145: 0.02 | U145: 0.02 | V145: محصل | W145: شيك | X145: 45523.78715 | Y145: مسدده | Z145: 0.1 | AA145: 4476.21285 | AB145: 4476.21285 | AC145: 4476.21285 | AD145: محصله | AE145: A | AF145: 1
A146: 347 | B146: 2020-01-01 | C146: اصدار | D146: M | E146: S | F146: - | G146: INVO 138 | H146: CUST 138 | I146: B | J146: W | K146: 237 | L146: 1298000 | M146: 24417.37 | N146: 25960 | O146: 25960 | P146: 25960 | Q146: 25960 | R146: 0 | S146: 23640.34985 | T146: 0.02 | U146: 0.02 | V146: محصل | W146: شيك | X146: 23640.34985 | Y146: مسدده | Z146: 0.1 | AA146: 2319.65015 | AB146: 2319.65015 | AC146: 0 | AD146: واجبه التحصيل | AE146: A | AF146: 1
A147: 348 | B147: 2020-01-01 | C147: اصدار | D147: M | E147: S | F147: - | G147: INVO 139 | H147: CUST 139 | I147: B | J147: W | K147: 238 | L147: 280000 | M147: 7882 | N147: 8400 | O147: 8400 | P147: 6300 | R147: -6300 | S147: 7276.815 | T147: 0.03 | U147: 0.0225 | V147: غير محصل | X147: 7276.815 | Y147: غير مسدده | Z147: 0.15 | AA147: 1123.185 | AB147: -7276.815 | AD147: مؤجلة لعدم السداد | AE147: A | AF147: 1
A148: 350 | B148: 2020-01-01 | C148: اصدار | D148: M | E148: S | F148: - | G148: INVO 140 | H148: CUST 140 | I148: B | J148: W | K148: 239 | L148: 340000 | M148: 9580.74 | N148: 10200 | O148: 10200 | P148: 7650 | R148: -7650 | S148: 7469.4891 | T148: 0.03 | U148: 0.0225 | V148: غير محصل | X148: 7469.4891 | Y148: مسدده | Z148: 0.3 | AA148: 2730.5109 | AB148: -7469.4891 | AC148: 2730.5109 | AD148: محصله | AE148: A | AF148: 1
A149: 351 | B149: 2020-01-01 | C149: اصدار | D149: M | E149: S | F149: A | G149: INVO 141 | H149: CUST 141 | I149: B | J149: W | K149: 240 | L149: 880000 | M149: 35275.33 | N149: 37400 | O149: 37400 | P149: 35200 | R149: -35200 | S149: 25670.95278 | T149: 0.0425 | U149: 0.04 | V149: غير محصل | X149: 25670.95278 | Y149: غير مسدده | Z149: 0.35 | AA149: 11729.04722 | AB149: -25670.95278 | AC149: 0 | AD149: مؤجلة لعدم السداد | AE149: A | AF149: 1
A150: 352 | B150: 2020-01-01 | C150: اصدار | D150: M | E150: S | F150: - | G150: INVO 142 | H150: CUST 142 | I150: B | J150: W | K150: 241 | L150: 850000 | M150: 34061.38 | N150: 36125 | O150: 36125 | P150: 34000 | Q150: 29750 | R150: -4250 | S150: 21563.76005 | T150: 0.0425 | U150: 0.04 | V150: محصل | W150: كاش | X150: 21563.76005 | Y150: مسدده | Z150: 0.45 | AA150: 14561.23995 | AB150: 8186.23995 | AC150: 14561.23995 | AD150: محصله | AE150: A | AF150: 1
A151: 353 | B151: 2020-01-01 | C151: اصدار | D151: M | E151: S | F151: - | G151: INVO 143 | H151: CUST 143 | I151: B | J151: W | K151: 242 | L151: 330000 | M151: 9297.45 | N151: 9900 | O151: 9900 | P151: 7425 | R151: -7425 | S151: 7250.22675 | T151: 0.03 | U151: 0.0225 | V151: غير محصل | X151: 7250.22675 | Y151: مسدده | Z151: 0.3 | AA151: 2649.77325 | AB151: -7250.22675 | AC151: 0 | AD151: واجبه التحصيل | AE151: A | AF151: 1
A152: 354 | B152: 2020-01-01 | C152: اصدار | D152: M | E152: S | F152: - | G152: INVO 144 | H152: CUST 144 | I152: B | J152: W | K152: 243 | L152: 330000 | M152: 9297.45 | N152: 9900 | O152: 9900 | P152: 7425 | R152: -7425 | S152: 7250.22675 | T152: 0.03 | U152: 0.0225 | V152: غير محصل | X152: 7250.22675 | Y152: مسدده | Z152: 0.3 | AA152: 2649.77325 | AB152: -7250.22675 | AC152: 2649.77325 | AD152: محصله | AE152: A | AF152: 1
A153: 355 | B153: 2020-01-01 | C153: اصدار | D153: M | E153: S | F153: - | G153: INVO 145 | H153: CUST 145 | I153: B | J153: W | K153: 244 | L153: 173000 | M153: 4887.25 | N153: 5190 | O153: 5190 | P153: 3892.5 | R153: -3892.5 | S153: 4493.566875 | T153: 0.03 | U153: 0.0225 | V153: غير محصل | X153: 4493.566875 | Y153: غير مسدده | Z153: 0.15 | AA153: 696.433125 | AB153: -4493.566875 | AD153: مؤجلة لعدم السداد | AE153: A | AF153: 1
A154: 355 | B154: 2020-01-01 | C154: اصدار | D154: M | E154: S | F154: - | G154: INVO 146 | H154: CUST 146 | I154: B | J154: W | K154: 245 | L154: 173000 | M154: 4887.25 | N154: 5190 | O154: 5190 | P154: 3892.5 | R154: -3892.5 | S154: 4493.566875 | T154: 0.03 | U154: 0.0225 | V154: غير محصل | X154: 4493.566875 | Y154: غير مسدده | Z154: 0.15 | AA154: 696.433125 | AB154: -4493.566875 | AD154: مؤجلة لعدم السداد | AE154: A | AF154: 1
A155: 355 | B155: 2020-01-01 | C155: اصدار | D155: M | E155: S | F155: - | G155: INVO 147 | H155: CUST 147 | I155: B | J155: W | K155: 246 | L155: 173000 | M155: 4887.25 | N155: 5190 | O155: 5190 | P155: 3892.5 | R155: -3892.5 | S155: 4493.566875 | T155: 0.03 | U155: 0.0225 | V155: غير محصل | X155: 4493.566875 | Y155: غير مسدده | Z155: 0.15 | AA155: 696.433125 | AB155: -4493.566875 | AD155: مؤجلة لعدم السداد | AE155: A | AF155: 1
A156: 355 | B156: 2020-01-01 | C156: اصدار | D156: M | E156: S | F156: - | G156: INVO 148 | H156: CUST 148 | I156: B | J156: W | K156: 247 | L156: 173000 | M156: 4887.25 | N156: 5190 | O156: 5190 | P156: 3892.5 | R156: -3892.5 | S156: 4493.566875 | T156: 0.03 | U156: 0.0225 | V156: غير محصل | X156: 4493.566875 | Y156: غير مسدده | Z156: 0.15 | AA156: 696.433125 | AB156: -4493.566875 | AD156: مؤجلة لعدم السداد | AE156: A | AF156: 1
A157: 356 | B157: 2020-01-01 | C157: اصدار | D157: M | E157: S | F157: - | G157: INVO 149 | H157: CUST 149 | I157: B | J157: W | K157: 248 | L157: 150000 | M157: 4147.6 | N157: 4500 | O157: 4500 | P157: 3375 | Q157: 3217.5 | R157: -157.5 | S157: 3120.923 | T157: 0.03 | U157: 0.0225 | V157: محصل | W157: كاش | X157: 3120.923 | Y157: مسدده | Z157: 0.35 | AA157: 1379.077 | AB157: 96.577 | AC157: 197.011 | AD157: محصله | AE157: A | AF157: 1
A158: 358 | B158: 2020-01-01 | C158: اصدار | D158: M | E158: S | F158: - | G158: INVO 150 | H158: CUST 150 | I158: B | J158: W | K158: 249 | L158: 180000 | M158: 5048.16 | N158: 5400 | O158: 5400 | P158: 4050 | R158: -4050 | S158: 3961.2744 | T158: 0.03 | U158: 0.0225 | V158: غير محصل | X158: 3961.2744 | Y158: مسدده | Z158: 0.3 | AA158: 1438.7256 | AB158: -3961.2744 | AC158: 1438.7256 | AD158: محصله | AE158: A | AF158: 1
A159: 359 | B159: 2020-01-01 | C159: اصدار | D159: M | E159: S | F159: - | G159: INVO 151 | H159: CUST 151 | I159: B | J159: W | K159: 250 | L159: 199000 | M159: 5540.6 | N159: 5970 | O159: 5970 | P159: 4477.5 | Q159: 3781 | R159: -696.5 | S159: 4390.929 | T159: 0.03 | U159: 0.0225 | V159: محصل | W159: فيزا | X159: 4390.929 | Y159: مسدده | Z159: 0.3 | AA159: 1579.071 | AB159: -609.929 | AC159: 0 | AD159: واجبه التحصيل | AE159: A | AF159: 1
A160: 360 | B160: 2020-01-01 | C160: اصدار | D160: M | E160: S | F160: - | G160: INVO 152 | H160: CUST 152 | I160: B | J160: W | K160: 251 | L160: 597000 | M160: 16807.6 | N160: 17910 | O160: 17910 | P160: 13432.5 | Q160: 12537 | R160: -895.5 | S160: 12321.473 | T160: 0.03 | U160: 0.0225 | V160: محصل | W160: كاش | X160: 12321.473 | Y160: مسدده | Z160: 0.35 | AA160: 5588.527 | AB160: 215.527 | AC160: 319.3444 | AD160: محصله | AE160: A | AF160: 1
A161: 361 | B161: 2020-01-01 | C161: اصدار | D161: M | E161: S | F161: - | G161: INVO 153 | H161: CUST 153 | I161: B | J161: W | K161: 252 | L161: 300000 | M161: 8385.7 | N161: 9000 | O161: 9000 | P161: 6750 | Q161: 6300 | R161: -450 | S161: 6211.75475 | T161: 0.03 | U161: 0.0225 | V161: محصل | W161: كاش | X161: 6211.75475 | Y161: مسدده | Z161: 0.35 | AA161: 2788.24525 | AB161: 88.24525 | AC161: 0 | AD161: محصله | AE161: A | AF161: 1
A162: 363 | B162: 2020-01-01 | C162: اصدار | D162: M | E162: S | F162: - | G162: INVO 154 | H162: CUST 154 | I162: B | J162: W | K162: 253 | L162: 174000 | M162: 4879 | N162: 5320 | O162: 5320 | P162: 3915 | R162: -3915 | S162: 4624.7425 | T162: 0.03057471264 | U162: 0.0225 | V162: غير محصل | X162: 4624.7425 | Y162: مسدده | Z162: 0.15 | AA162: 695.2575 | AB162: -4624.7425 | AC162: 927.01 | AD162: محصله | AE162: A | AF162: 1
A163: 365 | B163: 2020-01-01 | C163: اصدار | D163: M | E163: S | F163: - | G163: INVO 155 | H163: CUST 155 | I163: B | J163: W | K163: 254 | L163: 325000 | M163: 9155.81 | N163: 9750 | O163: 9750 | P163: 7312.5 | R163: -7312.5 | S163: 7140.59415 | T163: 0.03 | U163: 0.0225 | V163: غير محصل | X163: 7140.59415 | Y163: مسدده | Z163: 0.3 | AA163: 2609.40585 | AB163: -7140.59415 | AC163: 2609.40585 | AD163: محصله | AE163: A | AF163: 1
A164: 366 | B164: 2020-01-01 | C164: اصدار | D164: M | E164: S | F164: - | G164: INVO 156 | H164: CUST 156 | I164: B | J164: W | K164: 255 | L164: 355000 | M164: 10005.67 | N164: 10650 | O164: 10650 | P164: 7987.5 | R164: -7987.5 | S164: 7798.38405 | T164: 0.03 | U164: 0.0225 | V164: غير محصل | X164: 7798.38405 | Y164: مسدده | Z164: 0.3 | AA164: 2851.61595 | AB164: -7798.38405 | AC164: 2851.61595 | AD164: محصله | AE164: A | AF164: 1
A165: 367 | B165: 2020-01-01 | C165: اصدار | D165: M | E165: S | F165: - | G165: INVO 157 | H165: CUST 157 | I165: B | J165: W | K165: 256 | L165: 207000 | M165: 5765.32 | N165: 6210 | O165: 6210 | P165: 4374 | R165: -4374 | S165: 4293.0311 | T165: 0.03 | U165: 0.02113043478 | V165: غير محصل | X165: 4293.0311 | Y165: مسدده | Z165: 0.35 | AA165: 1916.9689 | AB165: -4293.0311 | AC165: 0 | AD165: محصله | AE165: A | AF165: 1
A166: 368 | B166: 2020-01-01 | C166: اصدار | D166: M | E166: S | F166: - | G166: INVO 158 | H166: CUST 158 | I166: B | J166: W | K166: 257 | L166: 150000 | M166: 4200 | N166: 4501 | O166: 4501 | P166: 3375 | R166: -3375 | S166: 3902.5 | T166: 0.03000666667 | U166: 0.0225 | V166: غير محصل | X166: 3902.5 | Y166: مسدده | Z166: 0.15 | AA166: 598.5 | AB166: -3902.5 | AC166: 798 | AD166: محصله | AE166: A | AF166: 1
A167: 369 | B167: 2020-01-01 | C167: اصدار | D167: M | E167: S | F167: - | G167: INVO 159 | H167: CUST 159 | I167: B | J167: W | K167: 258 | L167: 900000 | M167: 31773.37 | N167: 33750 | O167: 33750 | P167: 33750 | Q167: 33750 | R167: 0 | S167: 23185.35448 | T167: 0.0375 | U167: 0.0375 | V167: محصل | W167: كاش | X167: 23185.35448 | Y167: مسدده | Z167: 0.35 | AA167: 10564.64552 | AB167: 10564.64552 | AC167: 6036.9403 | AD167: محصله | AE167: A | AF167: 1
A168: 370 | B168: 2020-01-01 | C168: اصدار | D168: M | E168: S | F168: - | G168: INVO 160 | H168: CUST 160 | I168: B | J168: W | K168: 259 | L168: 700000 | M168: 26343.3 | N168: 28000 | O168: 28000 | P168: 28000 | Q168: 28000 | R168: 0 | S168: 16738.23925 | T168: 0.04 | U168: 0.04 | V168: محصل | W168: تحويل بنكي | X168: 16738.23925 | Y168: مسدده | Z168: 0.45 | AA168: 11261.76075 | AB168: 11261.76075 | AC168: 11261.76075 | AD168: محصله | AE168: A | AF168: 1
A169: 371 | B169: 2020-01-01 | C169: اصدار | D169: M | E169: S | F169: - | G169: INVO 161 | H169: CUST 161 | I169: B | J169: W | K169: 260 | L169: 1475000 | M169: 52180 | N169: 55313 | O169: 55313 | P169: 44250 | Q169: 44250 | R169: 0 | S169: 33006.05 | T169: 0.03750033898 | U169: 0.03 | V169: محصل | W169: تحويل بنكي | X169: 33006.05 | Y169: مسدده | Z169: 0.45 | AA169: 22306.95 | AB169: 11243.95 | AC169: 22306.95 | AD169: محصله | AE169: A | AF169: 1
A170: 372 | B170: 2020-01-01 | C170: اصدار | D170: M | E170: S | F170: - | G170: INVO 162 | H170: CUST 162 | I170: B | J170: W | K170: 261 | L170: 1475000 | M170: 52200 | N170: 55313 | O170: 55313 | P170: 55313 | Q170: 55313 | R170: 0 | S170: 32997.5 | T170: 0.03750033898 | U170: 0.03750033898 | V170: محصل | W170: شيك | X170: 32997.5 | Y170: مسدده | Z170: 0.45 | AA170: 22315.5 | AB170: 22315.5 | AC170: 22315.5 | AD170: محصله | AE170: A | AF170: 1
A171: 374 | B171: 2020-01-01 | C171: اصدار | D171: M | E171: S | F171: - | G171: INVO 163 | H171: CUST 163 | I171: B | J171: W | K171: 262 | L171: 1475000 | M171: 52180 | N171: 55313 | O171: 55313 | P171: 44250 | Q171: 44250 | R171: 0 | S171: 33006.05 | T171: 0.03750033898 | U171: 0.03 | V171: محصل | W171: تحويل بنكي | X171: 33006.05 | Y171: مسدده | Z171: 0.45 | AA171: 22306.95 | AB171: 11243.95 | AC171: 22306.95 | AD171: محصله | AE171: A | AF171: 1
A172: 375 | B172: 2020-01-01 | C172: اصدار | D172: M | E172: S | F172: - | G172: INVO 164 | H172: CUST 164 | I172: B | J172: W | K172: 263 | L172: 660000 | M172: 23290 | N172: 24750 | O172: 24750 | P172: 24750 | Q172: 24750 | R172: 0 | S172: 14793.525 | T172: 0.0375 | U172: 0.0375 | V172: محصل | W172: فيزا | X172: 14793.525 | Y172: مسدده | Z172: 0.45 | AA172: 9956.475 | AB172: 9956.475 | AC172: 9956.475 | AD172: محصله | AE172: A | AF172: 1
A173: 376 | B173: 2020-01-01 | C173: اصدار | D173: M | E173: S | F173: - | G173: INVO 165 | H173: CUST 165 | I173: B | J173: W | K173: 264 | L173: 2500000 | M173: 88476 | N173: 93750 | O173: 93750 | P173: 93750 | Q173: 93750 | R173: 0 | S173: 55926.51 | T173: 0.0375 | U173: 0.0375 | V173: محصل | W173: تحويل بنكى | X173: 55926.51 | Y173: مسدده | Z173: 0.45 | AA173: 37823.49 | AB173: 37823.49 | AC173: 37823.49 | AD173: محصله | AE173: A | AF173: 1
A174: 377 | B174: 2020-01-01 | C174: اصدار | D174: M | E174: S | F174: - | G174: INVO 166 | H174: CUST 166 | I174: B | J174: W | K174: 265 | L174: 430000 | M174: 10101 | N174: 10750 | O174: 12900 | P174: 12900 | R174: -12900 | S174: 6431.8225 | T174: 0.025 | U174: 0.03 | V174: غير محصل | X174: 6431.8225 | Y174: مسدده | Z174: 0.45 | AA174: 4318.1775 | AB174: -6431.8225 | AC174: 0 | AD174: واجبه التحصيل | AE174: A | AF174: 1
A175: 378 | B175: 2020-01-01 | C175: اصدار | D175: M | E175: S | F175: - | G175: INVO 167 | H175: CUST 167 | I175: B | J175: W | K175: 266 | L175: 1475000 | M175: 52180 | N175: 55313 | O175: 55313 | P175: 44250 | R175: -44250 | S175: 33006.05 | T175: 0.03750033898 | U175: 0.03 | V175: غير محصل | X175: 33006.05 | Y175: مسدده | Z175: 0.45 | AA175: 22306.95 | AB175: -33006.05 | AC175: 22306.95 | AD175: محصله | AE175: A | AF175: 1
A176: 379 | B176: 2020-01-01 | C176: اصدار | D176: M | E176: S | F176: - | G176: INVO 168 | H176: CUST 168 | I176: B | J176: W | K176: 267 | L176: 730000 | M176: 27520 | N176: 29200 | O176: 29200 | P176: 29200 | R176: -29200 | S176: 17435.2 | T176: 0.04 | U176: 0.04 | V176: غير محصل | X176: 17435.2 | Y176: مسدده | Z176: 0.45 | AA176: 11764.8 | AB176: -17435.2 | AC176: 11764.8 | AD176: محصله | AE176: A | AF176: 1
A177: 380 | B177: 2020-01-01 | C177: اصدار | D177: M | E177: S | F177: - | G177: INVO 169 | H177: CUST 169 | I177: B | J177: W | K177: 268 | L177: 1750000 | M177: 66050 | N177: 70000 | O177: 70000 | P177: 70000 | R177: -70000 | S177: 41763.625 | T177: 0.04 | U177: 0.04 | V177: غير محصل | X177: 41763.625 | Y177: مسدده | Z177: 0.45 | AA177: 28236.375 | AB177: -41763.625 | AC177: 28236.375 | AD177: محصله | AE177: A | AF177: 1
A178: 381 | B178: 2020-01-01 | C178: اصدار | D178: M | E178: S | F178: - | G178: INVO 170 | H178: CUST 170 | I178: B | J178: W | K178: 269 | L178: 500000 | M178: 17660 | N178: 18755 | O178: 18755 | P178: 18755 | Q178: 13000 | R178: -5755 | S178: 11205.35 | T178: 0.03751 | U178: 0.03751 | V178: محصل | W178: شيك | X178: 11205.35 | Y178: غير مسدده | Z178: 0.45 | AA178: 7549.65 | AB178: 1794.65 | AC178: 0 | AD178: مؤجلة لعدم السداد | AE178: A | AF178: 1
A179: 382 | B179: 2020-01-01 | C179: اصدار | D179: M | E179: S | F179: - | G179: INVO 171 | H179: CUST 171 | I179: B | J179: W | K179: 270 | L179: 1325000 | M179: 49826.53 | N179: 53000 | O179: 53000 | P179: 53000 | Q179: 53000 | R179: 0 | S179: 31699.15843 | T179: 0.04 | U179: 0.04 | V179: محصل | W179: فيزا | X179: 31699.15843 | Y179: مسدده | Z179: 0.45 | AA179: 21300.84157 | AB179: 21300.84157 | AC179: 10887.0968 | AD179: محصله | AE179: A | AF179: 1
A180: 383 | B180: 2020-01-01 | C180: اصدار | D180: M | E180: S | F180: - | G180: INVO 172 | H180: CUST 172 | I180: B | J180: W | K180: 271 | L180: 1850000 | M180: 65460 | N180: 69375 | O180: 69375 | P180: 55500 | Q180: 55500 | R180: 0 | S180: 41390.85 | T180: 0.0375 | U180: 0.03 | V180: محصل | W180: تحويل بنكي | X180: 41390.85 | Y180: مسدده | Z180: 0.45 | AA180: 27984.15 | AB180: 14109.15 | AC180: 27984.15 | AD180: محصله | AE180: A | AF180: 1
A181: 385 | B181: 2020-01-01 | C181: اصدار | D181: M | E181: S | F181: - | G181: INVO 173 | H181: CUST 173 | I181: B | J181: W | K181: 272 | L181: 730000 | M181: 29199.8 | N181: 31030 | O181: 31030 | P181: 31025 | Q181: 31025 | R181: 0 | S181: 18547.0855 | T181: 0.04250684932 | U181: 0.0425 | V181: محصل | W181: كاش | X181: 18547.0855 | Y181: مسدده | Z181: 0.45 | AA181: 12482.9145 | AB181: 12477.9145 | AC181: 12482.9145 | AD181: محصله | AE181: A | AF181: 1
A182: 389 | B182: 2020-01-01 | C182: اصدار | D182: M | E182: S | F182: - | G182: INVO 174 | H182: CUST 174 | I182: B | J182: W | K182: 273 | L182: 900000 | M182: 36022.3 | N182: 38250 | O182: 38250 | P182: 38250 | Q182: 38250 | R182: 0 | S182: 22850.46675 | T182: 0.0425 | U182: 0.0425 | V182: محصل | W182: كاش | X182: 22850.46675 | Y182: مسدده | Z182: 0.45 | AA182: 15399.53325 | AB182: 15399.53325 | AC182: 15399.53325 | AD182: محصله | AE182: A | AF182: 1
A183: 390 | B183: 2020-01-01 | C183: اصدار | D183: M | E183: S | F183: - | G183: INVO 175 | H183: CUST 175 | I183: B | J183: W | K183: 274 | L183: 600000 | M183: 22566.2 | N183: 24000 | O183: 24000 | P183: 24000 | Q183: 24000 | R183: 0 | S183: 14352.9495 | T183: 0.04 | U183: 0.04 | V183: محصل | W183: كاش | X183: 14352.9495 | Y183: مسدده | Z183: 0.45 | AA183: 9647.0505 | AB183: 9647.0505 | AC183: 9647.0505 | AD183: محصله | AE183: A | AF183: 1
A184: 391 | B184: 2020-01-01 | C184: اصدار | D184: M | E184: S | F184: - | G184: INVO 176 | H184: CUST 176 | I184: B | J184: W | K184: 275 | L184: 1450000 | M184: 54718 | N184: 58000 | O184: 58000 | P184: 58000 | Q184: 58002 | R184: 2 | S184: 34608.055 | T184: 0.04 | U184: 0.04 | V184: محصل | W184: شيك | X184: 34608.055 | Y184: مسدده | Z184: 0.45 | AA184: 23391.945 | AB184: 23393.945 | AC184: 23391.945 | AD184: محصله | AE184: A | AF184: 1
A185: 392 | B185: 2020-01-01 | C185: اصدار | D185: M | E185: S | F185: - | G185: INVO 177 | H185: CUST 177 | I185: B | J185: W | K185: 276 | L185: 1298000 | M185: 45866.86 | N185: 48675 | O185: 48675 | P185: 38940 | Q185: 38940 | R185: 0 | S185: 33424.26905 | T185: 0.0375 | U185: 0.03 | V185: محصل | W185: تحويل بنكي | X185: 33424.26905 | Y185: مسدده | Z185: 0.35 | AA185: 15250.73095 | AB185: 5515.73095 | AC185: 8714.7034 | AD185: محصله | AE185: A | AF185: 1
A186: 395 | B186: 2020-01-01 | C186: اصدار | D186: M | E186: S | F186: - | G186: INVO 178 | H186: CUST 178 | I186: B | J186: W | K186: 277 | L186: 950000 | M186: 38074.6 | N186: 40375 | O186: 40375 | P186: 33250 | R186: -33250 | S186: 24098.1085 | T186: 0.0425 | U186: 0.035 | V186: غير محصل | X186: 24098.1085 | Y186: مسدده | Z186: 0.45 | AA186: 16276.8915 | AB186: -24098.1085 | AC186: 16276.8915 | AD186: محصله | AE186: A | AF186: 1
A187: 397 | B187: 2020-01-01 | C187: اصدار | D187: M | E187: S | F187: - | G187: INVO 179 | H187: CUST 179 | I187: B | J187: W | K187: 278 | L187: 540000 | M187: 21620.4 | N187: 22950 | O187: 22950 | P187: 21600 | Q187: 22950 | R187: 1350 | S187: 13707.279 | T187: 0.0425 | U187: 0.04 | V187: محصل | W187: كاش | X187: 13707.279 | Y187: مسدده | Z187: 0.45 | AA187: 9242.721 | AB187: 9242.721 | AC187: 9242.721 | AD187: محصله | AE187: A | AF187: 1
A188: 398 | B188: 2020-01-01 | C188: اصدار | D188: M | E188: S | F188: - | G188: INVO 180 | H188: CUST 180 | I188: B | J188: W | K188: 279 | L188: 600000 | M188: 24028.33 | N188: 25500 | O188: 25500 | P188: 21000 | R188: -21000 | S188: 15227.88892 | T188: 0.0425 | U188: 0.035 | V188: غير محصل | X188: 15227.88892 | Y188: مسدده | Z188: 0.45 | AA188: 10272.11108 | AB188: -15227.88892 | AC188: 10272.11108 | AD188: محصله | AE188: A | AF188: 1
A189: 399 | B189: 2020-01-01 | C189: اصدار | D189: M | E189: S | F189: - | G189: INVO 181 | H189: CUST 181 | I189: B | J189: W | K189: 280 | L189: 576000 | M189: 20346 | N189: 21600 | O189: 21600 | P189: 20160 | Q189: 18720 | R189: -1440 | S189: 12902.085 | T189: 0.0375 | U189: 0.035 | V189: محصل | W189: فيزا | X189: 12902.085 | Y189: مسدده | Z189: 0.45 | AA189: 8697.915 | AB189: 5817.915 | AC189: 8697.915 | AD189: محصله | AE189: A | AF189: 1
A190: 400 | B190: 2020-01-01 | C190: اصدار | D190: M | E190: S | F190: - | G190: INVO 182 | H190: CUST 182 | I190: B | J190: W | K190: 281 | L190: 550000 | M190: 19426 | N190: 20625 | O190: 20625 | P190: 19250 | Q190: 20625 | R190: 1375 | S190: 12320.385 | T190: 0.0375 | U190: 0.035 | V190: محصل | W190: شيك | X190: 12320.385 | Y190: مسدده | Z190: 0.45 | AA190: 8304.615 | AB190: 8304.615 | AC190: 8304.615 | AD190: محصله | AE190: A | AF190: 1
A191: 401 | B191: 2020-01-01 | C191: اصدار | D191: M | E191: S | F191: - | G191: INVO 183 | H191: CUST 183 | I191: B | J191: W | K191: 282 | L191: 1168200 | M191: 46834 | N191: 49650 | O191: 49650 | P191: 40887 | Q191: 49649 | R191: 8762 | S191: 29628.465 | T191: 0.04250128403 | U191: 0.035 | V191: محصل | W191: فيزا | X191: 29628.465 | Y191: مسدده | Z191: 0.45 | AA191: 20021.535 | AB191: 20020.535 | AC191: 20021.535 | AD191: محصله | AE191: A | AF191: 1
A192: 402 | B192: 2020-01-01 | C192: اصدار | D192: M | E192: S | F192: - | G192: INVO 184 | H192: CUST 184 | I192: B | J192: W | K192: 283 | L192: 295000 | M192: 10398 | N192: 11065 | O192: 11065 | P192: 10325 | Q192: 10325 | R192: 0 | S192: 6619.855 | T192: 0.03750847458 | U192: 0.035 | V192: محصل | W192: شيك | X192: 6619.855 | Y192: مسدده | Z192: 0.45 | AA192: 4445.145 | AB192: 3705.145 | AC192: 4445.145 | AD192: محصله | AE192: A | AF192: 1
A193: 403 | B193: 2020-01-01 | C193: اصدار | D193: M | E193: S | F193: - | G193: INVO 185 | H193: CUST 185 | I193: B | J193: W | K193: 284 | L193: 324000 | M193: 14292 | N193: 15188 | O193: 15188 | P193: 11340 | Q193: 15188 | R193: 3848 | S193: 9078.17 | T193: 0.04687654321 | U193: 0.035 | V193: محصل | W193: كاش | X193: 9078.17 | Y193: مسدده | Z193: 0.45 | AA193: 6109.83 | AB193: 6109.83 | AC193: 6109.83 | AD193: محصله | AE193: A | AF193: 1
A194: 407 | B194: 2020-01-01 | C194: اصدار | D194: M | E194: S | F194: - | G194: INVO 186 | H194: CUST 186 | I194: B | J194: W | K194: 285 | L194: 513000 | M194: 20538 | N194: 21803 | O194: 21803 | P194: 17955 | Q194: 21800 | R194: 3845 | S194: 13023.005 | T194: 0.04250097466 | U194: 0.035 | V194: محصل | W194: كاش | X194: 13023.005 | Y194: مسدده | Z194: 0.45 | AA194: 8779.995 | AB194: 8776.995 | AC194: 8779.995 | AD194: محصله | AE194: A | AF194: 1
A195: 408 | B195: 2020-01-01 | C195: اصدار | D195: M | E195: S | F195: - | G195: INVO 187 | H195: CUST 187 | I195: B | J195: W | K195: 286 | L195: 420000 | M195: 14822 | N195: 15750 | O195: 15750 | P195: 14700 | Q195: 14700 | R195: 0 | S195: 9413.595 | T195: 0.0375 | U195: 0.035 | V195: محصل | W195: فيزا | X195: 9413.595 | Y195: مسدده | Z195: 0.45 | AA195: 6336.405 | AB195: 5286.405 | AC195: 6336.405 | AD195: محصله | AE195: A | AF195: 1
A196: 410 | B196: 2020-01-01 | C196: اصدار | D196: M | E196: S | F196: - | G196: INVO 188 | H196: CUST 188 | I196: B | J196: W | K196: 287 | L196: 765000 | M196: 30607 | N196: 32515 | O196: 32515 | P196: 28688 | Q196: 28688 | R196: 0 | S196: 22338.1725 | T196: 0.04250326797 | U196: 0.03750065359 | V196: محصل | W196: كاش | X196: 22338.1725 | Y196: مسدده | Z196: 0.35 | AA196: 10176.8275 | AB196: 6349.8275 | AC196: 5815.33 | AD196: محصله | AE196: A | AF196: 1
A197: 411 | B197: 2020-01-01 | C197: اصدار | D197: M | E197: S | F197: - | G197: INVO 189 | H197: CUST 189 | I197: B | J197: W | K197: 288 | L197: 610000 | M197: 21504 | N197: 22875 | O197: 22875 | P197: 21350 | R197: -21350 | S197: 15724.92 | T197: 0.0375 | U197: 0.035 | V197: غير محصل | X197: 15724.92 | Y197: مسدده | Z197: 0.35 | AA197: 7150.08 | AB197: -15724.92 | AC197: 5107.2 | AD197: محصله | AE197: A | AF197: 1
A198: 412 | B198: 2020-01-01 | C198: اصدار | D198: M | E198: S | F198: - | G198: INVO 190 | H198: CUST 190 | I198: B | J198: W | K198: 289 | L198: 684000 | M198: 24124 | N198: 25650 | O198: 25650 | P198: 23940 | Q198: 20520 | R198: -3420 | S198: 17628.77 | T198: 0.0375 | U198: 0.035 | V198: محصل | W198: فيزا | X198: 17628.77 | Y198: مسدده | Z198: 0.35 | AA198: 8021.23 | AB198: 2891.23 | AC198: 5729.45 | AD198: محصله | AE198: A | AF198: 1
A199: 413 | B199: 2020-01-01 | C199: اصدار | D199: M | E199: S | F199: - | G199: INVO 191 | H199: CUST 191 | I199: B | J199: W | K199: 290 | L199: 324000 | M199: 12906 | N199: 13770 | O199: 13770 | P199: 11340 | Q199: 13770 | R199: 2430 | S199: 9478.755 | T199: 0.0425 | U199: 0.035 | V199: محصل | W199: كاش | X199: 9478.755 | Y199: مسدده | Z199: 0.35 | AA199: 4291.245 | AB199: 4291.245 | AC199: 0 | AD199: واجبه التحصيل | AE199: A | AF199: 1
A200: 414 | B200: 2020-01-01 | C200: اصدار | D200: M | E200: S | F200: - | G200: INVO 192 | H200: CUST 192 | I200: B | J200: W | K200: 291 | L200: 1000000 | M200: 40081.21 | N200: 42500 | O200: 42500 | P200: 35000 | R200: -35000 | S200: 25365.28273 | T200: 0.0425 | U200: 0.035 | V200: غير محصل | X200: 25365.28273 | Y200: مسدده | Z200: 0.45 | AA200: 17134.71727 | AB200: -25365.28273 | AC200: 17134.71727 | AD200: محصله | AE200: A | AF200: 1
... 2050 more rows

Sheet Sheet1
L5: =SUM(L7:L10000) -> 0 | M5: =SUM(M7:M10000) -> 0 | N5: =SUM(N7:N10000) -> 0 | O5: 0 | P5: 0 | Q5: 0 | R5: 0 | S5: 0 | X5: 0 | AA5: 0 | AB5: 0 | AC5: 0
A6: Sr | B6: Issuing Month | C6: Way | D6: Account | E6: Type | F6: Com | G6: INVO | H6: Customer Name | I6: Brand | J6: Model | K6: DOC NO | L6: AM | M6: FIRT PAY | N6: SCN PABY | O6: THR PAY | P6: الريكوست | Q6: المحصل فعليا | R6: الفرق | S6: السداد ( المتوقع) | T6: نسبة الاصدار | U6: نسبة السداد | V6: التحصيل | W6: طريقة التحصيل | X6: صافي مستحق | Y6: سداد الشركة | Z6: نسبة العمولة | AA6: العمولة ( المتوقعة) بعد الخصم والتحصيل | AB6: العمولة ( المتوقعة) المحصلة فعليا | AC6: العمولة المستلمة | AD6: موقف العمولة | AE6: Sales Man | AF6: الشهر

Sheet Sheet2
S1: فبراير | T1: الشهر
T2: =VLOOKUP(S1,$V$3:$W$14,2,FALSE) -> 2 | X2: From | Y2: To
B3: العمولة | F3: غير مسدده محصله | H3: غير مسدده | J3: مسدده | L3: الغير محصل | M3: المحصل | S3: اصدار | T3: الشركة | V3: يناير | W3: 1 | X3: 2020-01-01 | Y3: 2020-01-31
B4: مؤجله لعدم السداد | C4: واجبة التحصيل | D4: محصلة | E4: العمولة المتوقعة | F4: الصافي | G4: الاجمالي | H4: الصافي | I4: الاجمالي | J4: الصافي | K4: الاجمالي | L4: المبلغ | M4: شيك مؤجل | N4: الاجمالي | O4: شيك واجب | P4: تحويل بنكي | Q4: فيزا | R4: كاش | S4: عدد الوثائق | V4: فبراير | W4: 2 | X4: 2020-02-01 | Y4: 2020-02-29
B5: 1725297.786 | C5: 643941.1804 | E5: 2513115.386 | F5: 2013487.107 | G5: 2909478 | H5: 4080238.679 | I5: 5805536.465 | J5: 3142775.99 | K5: 3930593.59 | L5: 2885327.245 | N5: =SUM(O5:R5) -> 6583443.18 | O5: 2765189 | P5: 1360548.18 | Q5: 1143872 | R5: 1313834 | S5: 386 | T5: A | V5: مارس | W5: 3 | X5: 2020-03-01 | Y5: 2020-03-31
S6: 0 | V6: ربع سنوي | W6: 4 | X6: 2020-01-01 | Y6: 2020-03-31
S7: 0 | V7: أبريل | W7: 5 | X7: 2020-04-01 | Y7: 2020-04-30
S8: 0 | V8: مايو | W8: 6 | X8: 2020-05-01 | Y8: 2020-05-31
S9: 0 | V9: ينويو | W9: 7 | X9: 2020-06-01 | Y9: 2020-06-30
S10: 0 | V10: نصف سنوي | W10: 8 | X10: 2020-01-01 | Y10: 2020-06-30
S11: 0 | V11: يوليو | W11: 9 | X11: 2020-07-01 | Y11: 2020-07-31
S12: 0 | V12: اغسطس | W12: 10 | X12: 2020-08-01 | Y12: 2020-08-31
S13: 0 | V13: سبتمبر | W13: 11 | X13: 2020-09-01 | Y13: 2020-09-30
S14: 0 | V14: 3/4 سنوي | W14: 12 | X14: 2020-01-01 | Y14: 2020-09-30
S15: 0 | V15: اكتوبر | X15: 2020-10-01 | Y15: 2020-10-31
S16: 0 | V16: نوفمبر | X16: 2020-11-01 | Y16: 2020-11-30
S17: 0 | V17: ديسمبر | X17: 2020-12-01 | Y17: 2020-12-31
S18: =SUM(S5:S17) -> 386 | V18: سنوي | X18: 2020-01-01 | Y18: 2020-12-31
